Workbook

Sheet Information
B1: MLTL-2 | C1: = | D1: 0.1
B3: Driver Dimensions
B4: Frame Width | C4: = | D4: 21.6 | E4: cm | F4: =D4/2.54 -> 8.503937008 | G4: in | I4: Plot
B5: Mounting Width | C5: = | D5: 18 | E5: cm | F5: =D5/2.54 -> 7.086614173 | G5: in | H5: x | I5: =CONCATENATE('Panel Calculations'!B31," ",'Panel Calculations'!C31) -> Panel A (baffle)
B6: Mounting Depth | C6: = | D6: 10.2 | E6: cm | F6: =D6/2.54 -> 4.015748031 | G6: in | H6: x | I6: =CONCATENATE('Panel Calculations'!B37," ",'Panel Calculations'!C37) -> Panel B (top)
B7: Magnet Width | C7: = | D7: 15.2 | E7: cm | F7: =D7/2.54 -> 5.984251969 | G7: in | H7: x | I7: =CONCATENATE('Panel Calculations'!B43," ",'Panel Calculations'!C43) -> Panel C (bottom)
B8: Magnet Height | C8: = | D8: 5.1 | E8: cm | F8: =D8/2.54 -> 2.007874016 | G8: in | H8: x | I8: =CONCATENATE('Panel Calculations'!B49," ",'Panel Calculations'!C49) -> Panel D (back)
H9: x | I9: =CONCATENATE('Panel Calculations'!B55," ",'Panel Calculations'!C55) -> Panel E (1st inside)
B10: Box Dimensions | H10: x | I10: =CONCATENATE('Panel Calculations'!B61," ",'Panel Calculations'!C61) -> Panel F (2nd inside)
B11: Depth | C11: = | D11: =12.5*2.54 -> 31.75 | E11: cm | F11: =D11/2.54 -> 12.5 | G11: in | H11: x | I11: =CONCATENATE('Panel Calculations'!B67," ",'Panel Calculations'!C67) -> Panel G (sides)
B12: Height | C12: = | D12: =21*2.54 -> 53.34 | E12: cm | F12: =D12/2.54 -> 21 | G12: in | H12: x | I12: Panel I
B13: Width | C13: = | D13: =10.5*2.54 -> 26.67 | E13: cm | F13: =D13/2.54 -> 10.5 | G13: in | H13: x | I13: Panel J
H14: x | I14: Panel K
B15: Box Parameters | H15: x | I15: =CONCATENATE('Panel Calculations'!B73," ",'Panel Calculations'!C73) -> Panel H (port separator)
B16: Panel Thickness | C16: = | D16: 1.9 | E16: cm | F16: =D16/2.54 -> 0.7480314961 | G16: in
B17: Separator Thickness | D17: 0 | E17: cm | F17: =D17/2.54 -> 0 | G17: in | H17: x | I17: Profile View
B18: Baffle Offset | C18: = | D18: 1.9 | E18: cm | F18: =D18/2.54 -> 0.7480314961 | G18: in
B19: Driver Offset | C19: = | D19: 5 | E19: cm | F19: =D19/2.54 -> 1.968503937 | G19: in | I19: Plot
H20: x | I20: Advanced Centerline
B21: Baffle Width | C21: = | D21: =D13-2*D52 -> 22.87 | E21: cm | F21: =D21/2.54 -> 9.003937008 | G21: in | H21: x | I21: Sample points
H22: x | I22: Guide lines
B23: HornResp Params | H23: x | I23: Driver
B24: S1 | C24: = | D24: =ROUND('Path Calculations'!P7,0) -> 510 | E24: cm^2
B25: S2 | C25: = | D25: =ROUND('Path Calculations'!P89,0) -> 306 | E25: cm^2
B26: S3 | C26: = | D26: =ROUND('Path Calculations'!P70,0) -> 68 | E26: cm^2
B27: S4 | C27: = | D27: 68.5 | E27: cm^2
B28: L12 | C28: = | D28: =ROUND('Path Calculations'!O89,1) -> 35 | E28: cm
B29: L23 | C29: = | D29: =ROUND('Path Calculations'!O70-Information!D28,1) -> 40.7 | E29: cm
B30: L34 | C30: = | D30: =ROUND('Path Calculations'!O85-Information!D29-Information!D28,1) -> 48.6 | E30: cm
B32: L (actual) | C32: = | D32: =SUM(D28:D30) -> 124.3 | E32: cm
H36: 0.05 | K36: 50
B38: Box Design
B39: Vol. (net) | C39: = | D39: =D40-I59 -> 27.37463377 | E39: l. | F39: =(D39*1000/2.54^3)/1728 -> 0.9667260683 | G39: cu.ft.
B40: Vol. (gross) | C40: = | D40: =D11*D12*D13/1000 -> 45.16684515 | E40: l. | F40: =D40*0.0353 -> 1.594389634 | G40: cu.ft.
B42: Expansion | C42: = | F42: 14.52643473 | G42: ='Path Calculations'!S34 -> -0.007823523344
B44: Panels | D44: p | E44: x | F44: y | G44: Goals | H44: # | I44: v
B45: =I5 -> Panel A (baffle) | D45: =$D$16 -> 1.9 | E45: =D21 -> 22.87 | F45: ='Panel Calculations'!L32 -> 44.64480979 | H45: 1 | I45: =F45*E45*D45*H45/10^3 -> 1.93995092
B46: =I6 -> Panel B (top) | D46: =$D$16 -> 1.9 | E46: =D21 -> 22.87 | F46: ='Panel Calculations'!L38 -> 31.75 | H46: 1 | I46: 1.37963275
B47: =I7 -> Panel C (bottom) | D47: =$D$16 -> 1.9 | E47: =D21 -> 22.87 | F47: ='Panel Calculations'!L44 -> 31.75 | H47: 1 | I47: 1.37963275
B48: =I8 -> Panel D (back) | D48: =$D$16 -> 1.9 | E48: =D21 -> 22.87 | F48: ='Panel Calculations'!L51 -> 49.54 | H48: 1 | I48: 2.15266162
B49: =I9 -> Panel E (1st inside) | D49: =$D$16 -> 1.9 | E49: =D21 -> 22.87 | F49: 10.46725745 | G49: ='Path Calculations'!S25 -> -0.001105874141 | H49: 1 | I49: 0.454833738
F50: 17.34798317 | G50: ='Path Calculations'!S61 -> 4.462996607e-05
B51: =I10 -> Panel F (2nd inside) | D51: =$D$16 -> 1.9 | E51: =D21 -> 22.87 | F51: ='Panel Calculations'!L62 -> 26.85480979 | H51: 1 | I51: 1.16692205
B52: =I11 -> Panel G (sides) | D52: =$D$16 -> 1.9 | E52: ='Panel Calculations'!L68 -> 31.75 | F52: ='Panel Calculations'!L71 -> 53.34 | H52: 2 | I52: =F52*E52*D52*H52/10^3 -> 6.435471
B53: =I15 -> Panel H (port separator) | D53: =D17 -> 0 | E53: ='Panel Calculations'!L74 -> 29.85 | F53: ='Panel Calculations'!L75 -> 2.995190206 | G53: ='Path Calculations'!S49 -> 0.03109225824 | H53: 2 | I53: =F53*E53*D53*H53/10^3 -> 0
B54: =I12 -> Panel I | D54: =D16 -> 1.9 | E54: =D21 -> 22.87 | F54: 17.3 | H54: 2 | I54: =F54*E54*D54*H54/10^3 -> 1.5034738
B55: =I13 -> Panel J | D55: =D17 -> 0 | E55: ='Panel Calculations'!L86 -> 2.995190206 | F55: ='Panel Calculations'!L87 -> 19.2 | H55: 2 | I55: 0
B56: =I14 -> Panel K | D56: =D16 -> 1.9 | E56: =D21 -> 22.87 | F56: 13.79413895 | G56: ='Path Calculations'!S37 -> -2.124252774e-08
B57: Baffle Offset | D57: =D18 -> 1.9 | E57: =D21 -> 22.87 | F57: =F46 -> 31.75 | H57: 1 | I57: =F57*E57*D57*H57/10^3 -> 1.37963275
H59: Pnl Vol | I59: =SUM(I45:I58) -> 17.79221138 | J59: l
B65: Equivalent Vented
B66: Net Volume | C66: = | D66: =D39 -> 27.37463377 | E66: l. | F66: =D66*0.0353 -> 0.9663245722 | G66: cu.ft. | I66: Axes | J66: x | K66: y
B67: Vent Area | C67: = | D67: =D27 -> 68.5 | E67: cm^2 | F67: =D67/2.54^2 -> 10.61752124 | G67: in^2 | I67: Axis 1 | J67: 0 | K67: 0
B68: Vent Length | C68: = | D68: =D30 -> 48.6 | E68: cm | F68: =D68/2.54 -> 19.13385827 | G68: in | J68: =J67 -> 0 | K68: =MAX('Panel Calculations'!D3:E65) -> 68.42
B69: Equiv. Vent Dia. | C69: = | D69: =2*(D67/PI())^0.5 -> 9.338999348 | E69: cm | F69: =D69/2.54 -> 3.676771397 | G69: in | I69: Axis 2 | J69: 0 | K69: 0
B70: Port Ratio | C70: = | D70: =D21/(D67/D21) -> 7.635575182 | J70: =K68 -> 68.42 | K70: =K69 -> 0
B71: Sd/Vent | C71: = | D71: =D97/D67 -> 3.194160584
B74: Filename | C74: = | D74: I:\Users\Brian.Steele\OneDrive\Hornresp\Import\BOXPLAN.TXT
B76: ID | C76: = | D76: 29.00 | J76: =CONCATENATE(B76,C76,D76) -> ID=29.00
B77: Ang | C77: = | D77: 2.0 x PI | J77: =CONCATENATE(B77,C77,D77) -> Ang=2.0 x PI
B78: Eg | C78: = | D78: 2.83 | J78: Eg=2.83
B79: Rg | C79: = | D79: 0 | J79: Rg=0
B80: Fta | C80: = | D80: 0 | J80: Fta=0
B81: S1 | C81: = | D81: =D24 -> 510 | J81: S1=510
B82: S2 | C82: = | D82: =D25 -> 306 | J82: S2=306
B83: Par | C83: = | D83: =D28 -> 35 | J83: Par=35
B84: F12 | C84: = | D84: 0 | J84: F12=0
B85: S2 | C85: = | D85: =D82 -> 306 | J85: S2=306
B86: S3 | C86: = | D86: =D26 -> 68 | J86: S3=68
B87: Par | C87: = | D87: =D29 -> 40.7 | J87: Par=40.7
B88: F23 | C88: = | D88: 0 | J88: F23=0
B89: S3 | C89: = | D89: =D86 -> 68 | J89: S3=68
B90: S4 | C90: = | D90: =D27 -> 68.5 | J90: S4=68.4999999999995
B91: Par | C91: = | D91: =D30 -> 48.6 | J91: Par=48.6
B92: F34 | C92: = | D92: 0 | J92: F34=0
B93: S4 | C93: = | D93: 0 | J93: S4=0
B94: S5 | C94: = | D94: 0 | J94: S5=0
B95: L45 | C95: = | D95: 0 | J95: L45=0
B96: F45 | C96: = | D96: 0 | J96: F45=0
B97: Sd | C97: = | D97: 218.8 | J97: Sd=218.8
B98: Bl | C98: = | D98: 11.04 | J98: Bl=11.04
B99: Cms | C99: = | D99: 0.000394 | J99: Cms=0.000394
B100: Rms | C100: = | D100: 1.99 | J100: Rms=1.99
B101: Mmd | C101: = | D101: 59.76 | J101: Mmd=59.76
B102: Le | C102: = | D102: 1.78 | J102: Le=1.78
B103: Re | C103: = | D103: 3.9 | J103: Re=3.9
B104: OD | C104: = | D104: 1 | J104: OD=1
B105: Vrc | C105: = | D105: 0 | J105: Vrc=0
B106: Lrc | C106: = | D106: 0 | J106: Lrc=0
B107: Ap1 | C107: = | D107: 0 | J107: Ap1=0
B108: Lp | C108: = | D108: 0 | J108: Lp=0
B109: Vtc | C109: = | D109: 0 | J109: Vtc=0
B110: Atc | C110: = | D110: 0 | J110: Atc=0
B111: Pmax | C111: = | D111: 350 | J111: Pmax=350
B112: Xmax | C112: = | D112: 8 | J112: Xmax=8
B113: Comment | C113: = | D113: =CONCATENATE("BOXPLAN ", B1, " v",D1) -> BOXPLAN MLTL-2 v0.1 | J113: Comment=BOXPLAN MLTL-2 v0.1

Sheet Panel Calculations
B2: Offset | D2: x | E2: y
D3: 0 | E3: 0
B5: Driver | D5: x | E5: y
D6: =D31 -> 1.9 | E6: ='Path Calculations'!J23-Information!D4/2+Information!D19 -> 11.36801896 | G6: =IF(Information!$H$23="x",'Panel Calculations'!D6,"") -> 1.9 | H6: =IF(Information!$H$23="x",'Panel Calculations'!E6,"") -> 11.36801896
D7: =D6 -> 1.9 | E7: =E6+Information!D4 -> 32.96801896 | G7: =IF(Information!$H$23="x",'Panel Calculations'!D7,"") -> 1.9 | H7: =IF(Information!$H$23="x",'Panel Calculations'!E7,"") -> 32.96801896
D8: =D7 -> 1.9 | E8: =E7-(Information!D4-Information!D5)/2 -> 31.16801896 | G8: =IF(Information!$H$23="x",'Panel Calculations'!D8,"") -> 1.9 | H8: =IF(Information!$H$23="x",'Panel Calculations'!E8,"") -> 31.16801896
D9: =D8+Information!D6-Information!D8 -> 7 | E9: =E8-(Information!D5-Information!D7)/2 -> 29.76801896 | G9: =IF(Information!$H$23="x",'Panel Calculations'!D9,"") -> 7 | H9: =IF(Information!$H$23="x",'Panel Calculations'!E9,"") -> 29.76801896
D10: =D9+Information!D8 -> 12.1 | E10: =E9 -> 29.76801896 | G10: =IF(Information!$H$23="x",'Panel Calculations'!D10,"") -> 12.1 | H10: =IF(Information!$H$23="x",'Panel Calculations'!E10,"") -> 29.76801896
D11: =D10 -> 12.1 | E11: =E10-Information!D7 -> 14.56801896 | G11: =IF(Information!$H$23="x",'Panel Calculations'!D11,"") -> 12.1 | H11: =IF(Information!$H$23="x",'Panel Calculations'!E11,"") -> 14.56801896
D12: =D9 -> 7 | E12: =E11 -> 14.56801896 | G12: =IF(Information!$H$23="x",'Panel Calculations'!D12,"") -> 7 | H12: =IF(Information!$H$23="x",'Panel Calculations'!E12,"") -> 14.56801896
D13: =D8 -> 1.9 | E13: =E6+(Information!D4-Information!D5)/2 -> 13.16801896 | G13: =IF(Information!$H$23="x",'Panel Calculations'!D13,"") -> 1.9 | H13: =IF(Information!$H$23="x",'Panel Calculations'!E13,"") -> 13.16801896
D14: =D13 -> 1.9 | E14: =E6+Information!D4/2 -> 22.16801896 | G14: =IF(Information!$H$23="x",'Panel Calculations'!D14,"") -> 1.9 | H14: =IF(Information!$H$23="x",'Panel Calculations'!E14,"") -> 22.16801896
D15: =D12 -> 7 | E15: =E14 -> 22.16801896 | G15: =IF(Information!$H$23="x",'Panel Calculations'!D15,"") -> 7 | H15: =IF(Information!$H$23="x",'Panel Calculations'!E15,"") -> 22.16801896
D16: =D15 -> 7 | E16: =E12 -> 14.56801896 | G16: =IF(Information!$H$23="x",'Panel Calculations'!D16,"") -> 7 | H16: =IF(Information!$H$23="x",'Panel Calculations'!E16,"") -> 14.56801896
D17: =D16 -> 7 | E17: =E10 -> 29.76801896 | G17: =IF(Information!$H$23="x",'Panel Calculations'!D17,"") -> 7 | H17: =IF(Information!$H$23="x",'Panel Calculations'!E17,"") -> 29.76801896
B19: Axes | D19: 0 | E19: 0
D20: 0 | E20: =MAX(D25:E143) -> 68.42
O21: Expansion | P21: Cos | Q21: Sin | R21: Tan
D22: =D19 -> 0 | E22: =E19 -> 0 | O22: =Information!F42 -> 14.52643473 | P22: =COS(Information!F42*PI()/180) -> 0.9680320188 | Q22: =SIN(Information!F42*PI()/180) -> 0.2508266546 | R22: =TAN(Information!F42*PI()/180) -> 0.2591098742
D23: =E20 -> 68.42 | E23: =E19 -> 0 | O23: =O22/2 -> 7.263217363 | P23: =COS(Information!F42*PI()/(180*2)) -> 0.9919758109 | Q23: =SIN(Information!F42*PI()/(180*2)) -> 0.1264278079 | R23: =TAN(Information!F42*PI()/(180*2)) -> 0.1274504948
J24: dx | K24: dy
B31: Panel A | C31: (baffle) | D31: =D64+Information!D18 -> 1.9 | E31: =E63 -> 6.795190206 | G31: =IF(Information!$H$5="x",'Panel Calculations'!D31,0) -> 1.9 | H31: =IF(Information!$H$5="x",'Panel Calculations'!E31,0) -> 6.795190206
D32: =D31 -> 1.9 | E32: =E37 -> 51.44 | G32: =IF(Information!$H$5="x",'Panel Calculations'!D32,0) -> 1.9 | H32: =IF(Information!$H$5="x",'Panel Calculations'!E32,0) -> 51.44 | J32: =D31-D32 -> 0 | K32: =E31-E32 -> -44.64480979 | L32: =(J32^2+K32^2)^0.5 -> 44.64480979
D33: =D32+Information!D45 -> 3.8 | E33: =E32 -> 51.44 | G33: =IF(Information!$H$5="x",'Panel Calculations'!D33,0) -> 3.8 | H33: =IF(Information!$H$5="x",'Panel Calculations'!E33,0) -> 51.44 | J33: -1.9 | K33: 0 | L33: =(J33^2+K33^2)^0.5 -> 1.9
D34: =D33 -> 3.8 | E34: =E31 -> 6.795190206 | G34: =IF(Information!$H$5="x",'Panel Calculations'!D34,0) -> 3.8 | H34: =IF(Information!$H$5="x",'Panel Calculations'!E34,0) -> 6.795190206 | J34: 0 | K34: 44.64480979 | L34: =(J34^2+K34^2)^0.5 -> 44.64480979
D35: =D31 -> 1.9 | E35: =E31 -> 6.795190206 | G35: =IF(Information!$H$5="x",'Panel Calculations'!D35,0) -> 1.9 | H35: =IF(Information!$H$5="x",'Panel Calculations'!E35,0) -> 6.795190206 | J35: 1.9 | K35: 0 | L35: =(J35^2+K35^2)^0.5 -> 1.9
B37: Panel B | C37: (top) | D37: =D70 -> 0 | E37: =E69-Information!D47 -> 51.44 | G37: =IF(Information!$H$6="x",'Panel Calculations'!D37,0) -> 0 | H37: =IF(Information!$H$6="x",'Panel Calculations'!E37,0) -> 51.44
D38: =D37+Information!D11 -> 31.75 | E38: =E37 -> 51.44 | G38: =IF(Information!$H$6="x",'Panel Calculations'!D38,0) -> 31.75 | H38: =IF(Information!$H$6="x",'Panel Calculations'!E38,0) -> 51.44 | J38: =D37-D38 -> -31.75 | K38: 0 | L38: =(J38^2+K38^2)^0.5 -> 31.75
D39: =D38 -> 31.75 | E39: =E38+Information!D16 -> 53.34 | G39: =IF(Information!$H$6="x",'Panel Calculations'!D39,0) -> 31.75 | H39: =IF(Information!$H$6="x",'Panel Calculations'!E39,0) -> 53.34 | J39: 0 | K39: -1.9 | L39: =(J39^2+K39^2)^0.5 -> 1.9
D40: =D37 -> 0 | E40: =E39 -> 53.34 | G40: =IF(Information!$H$6="x",'Panel Calculations'!D40,0) -> 0 | H40: =IF(Information!$H$6="x",'Panel Calculations'!E40,0) -> 53.34 | J40: 31.75 | K40: 0 | L40: =(J40^2+K40^2)^0.5 -> 31.75
D41: =D37 -> 0 | E41: =E37 -> 51.44 | G41: =IF(Information!$H$6="x",'Panel Calculations'!D41,0) -> 0 | H41: =IF(Information!$H$6="x",'Panel Calculations'!E41,0) -> 51.44 | J41: 0 | K41: 1.9 | L41: =(J41^2+K41^2)^0.5 -> 1.9
B43: Panel C | C43: (bottom) | D43: =D67 -> 0 | E43: =E67+Information!D47 -> 1.9 | G43: =IF(Information!$H$7="x",'Panel Calculations'!D43,0) -> 0 | H43: =IF(Information!$H$7="x",'Panel Calculations'!E43,0) -> 1.9
D44: =D68 -> 31.75 | E44: =E43 -> 1.9 | G44: =IF(Information!$H$7="x",'Panel Calculations'!D44,0) -> 31.75 | H44: =IF(Information!$H$7="x",'Panel Calculations'!E44,0) -> 1.9 | J44: =D43-D44 -> -31.75 | K44: 0 | L44: =(J44^2+K44^2)^0.5 -> 31.75
D45: =D44 -> 31.75 | E45: =E44-Information!D16 -> 0 | G45: =IF(Information!$H$7="x",'Panel Calculations'!D45,0) -> 31.75 | H45: =IF(Information!$H$7="x",'Panel Calculations'!E45,0) -> 0 | J45: 0 | K45: 1.9 | L45: =(J45^2+K45^2)^0.5 -> 1.9
D46: =D43 -> 0 | E46: =E45 -> 0 | G46: =IF(Information!$H$7="x",'Panel Calculations'!D46,0) -> 0 | H46: =IF(Information!$H$7="x",'Panel Calculations'!E46,0) -> 0 | J46: 31.75 | K46: 0 | L46: =(J46^2+K46^2)^0.5 -> 31.75
D47: =D43 -> 0 | E47: =E43 -> 1.9 | G47: =IF(Information!$H$7="x",'Panel Calculations'!D47,0) -> 0 | H47: =IF(Information!$H$7="x",'Panel Calculations'!E47,0) -> 1.9 | J47: 0 | K47: -1.9 | L47: =(J47^2+K47^2)^0.5 -> 1.9
B49: Panel D | C49: (back) | D49: =D68 -> 31.75 | E49: =E67+Information!D47 -> 1.9 | G49: =IF(Information!$H$8="x",'Panel Calculations'!D49,0) -> 31.75 | H49: =IF(Information!$H$8="x",'Panel Calculations'!E49,0) -> 1.9
D50: =D49-Information!D16 -> 29.85 | E50: =E49 -> 1.9 | G50: =IF(Information!$H$8="x",'Panel Calculations'!D50,0) -> 29.85 | H50: =IF(Information!$H$8="x",'Panel Calculations'!E50,0) -> 1.9 | J50: =D49-D50 -> 1.9 | K50: 0 | L50: =(J50^2+K50^2)^0.5 -> 1.9
D51: =D50 -> 29.85 | E51: =E38 -> 51.44 | G51: =IF(Information!$H$8="x",'Panel Calculations'!D51,0) -> 29.85 | H51: =IF(Information!$H$8="x",'Panel Calculations'!E51,0) -> 51.44 | J51: 0 | K51: -49.54 | L51: =(J51^2+K51^2)^0.5 -> 49.54
D52: =D51+Information!D16 -> 31.75 | E52: =E51 -> 51.44 | G52: =IF(Information!$H$8="x",'Panel Calculations'!D52,0) -> 31.75 | H52: =IF(Information!$H$8="x",'Panel Calculations'!E52,0) -> 51.44 | J52: -1.9 | K52: 0 | L52: =(J52^2+K52^2)^0.5 -> 1.9
D53: =D49 -> 31.75 | E53: =E49 -> 1.9 | G53: =IF(Information!$H$8="x",'Panel Calculations'!D53,0) -> 31.75 | H53: =IF(Information!$H$8="x",'Panel Calculations'!E53,0) -> 1.9 | J53: 0 | K53: 49.54 | L53: =(J53^2+K53^2)^0.5 -> 49.54
B55: Panel E | C55: (1st inside) | D55: =D50 -> 29.85 | E55: =E63+Information!F50+Information!D49*'Panel Calculations'!P22+(E61-E43) -> 28.97762442 | G55: =IF(Information!$H$9="x",'Panel Calculations'!D55,0) -> 29.85 | H55: =IF(Information!$H$9="x",'Panel Calculations'!E55,0) -> 28.97762442
D56: =D55-Information!F49*P22 -> 19.71735964 | E56: =E55+Information!F49*Q22 -> 31.60309159 | G56: =IF(Information!$H$9="x",'Panel Calculations'!D56,0) -> 19.71735964 | H56: =IF(Information!$H$9="x",'Panel Calculations'!E56,0) -> 31.60309159 | J56: =D55-D56 -> 10.13264036 | K56: -2.625467169 | L56: =(J56^2+K56^2)^0.5 -> 10.46725745
D57: =D56-Information!D49*Q22 -> 19.240789 | E57: =E56-Information!D49*P22 -> 29.76383075 | G57: =IF(Information!$H$9="x",'Panel Calculations'!D57,0) -> 19.240789 | H57: =IF(Information!$H$9="x",'Panel Calculations'!E57,0) -> 29.76383075 | J57: 0.4765706437 | K57: 1.839260836 | L57: =(J57^2+K57^2)^0.5 -> 1.9
D58: =D55-Information!D49*Q22 -> 29.37342936 | E58: =E55-Information!D49*P22 -> 27.13836358 | G58: =IF(Information!$H$9="x",'Panel Calculations'!D58,0) -> 29.37342936 | H58: =IF(Information!$H$9="x",'Panel Calculations'!E58,0) -> 27.13836358 | J58: -10.13264036 | K58: 2.625467169 | L58: =(J58^2+K58^2)^0.5 -> 10.46725745
D59: =D55 -> 29.85 | E59: =E55 -> 28.97762442 | G59: =IF(Information!$H$9="x",'Panel Calculations'!D59,0) -> 29.85 | H59: =IF(Information!$H$9="x",'Panel Calculations'!E59,0) -> 28.97762442 | J59: -0.4765706437 | K59: -1.839260836 | L59: =(J59^2+K59^2)^0.5 -> 1.9
B61: Panel F | C61: (2nd inside) | D61: =D40 -> 0 | E61: =E43+Information!D27/(Information!D21-Information!$D$53) -> 4.895190206 | G61: =IF(Information!$H$10="x",'Panel Calculations'!D61,0) -> 0 | H61: =IF(Information!$H$10="x",'Panel Calculations'!E61,0) -> 4.895190206
D62: =D55-(Information!D27/Information!D21) -> 26.85480979 | E62: =E61 -> 4.895190206 | G62: =IF(Information!$H$10="x",'Panel Calculations'!D62,0) -> 26.85480979 | H62: =IF(Information!$H$10="x",'Panel Calculations'!E62,0) -> 4.895190206 | J62: =D61-D62 -> -26.85480979 | K62: 0 | L62: =(J62^2+K62^2)^0.5 -> 26.85480979
D63: =D62 -> 26.85480979 | E63: =E62+Information!D52 -> 6.795190206 | G63: =IF(Information!$H$10="x",'Panel Calculations'!D63,0) -> 26.85480979 | H63: =IF(Information!$H$10="x",'Panel Calculations'!E63,0) -> 6.795190206 | J63: 0 | K63: -1.9 | L63: =(J63^2+K63^2)^0.5 -> 1.9
D64: =D61 -> 0 | E64: =E63 -> 6.795190206 | G64: =IF(Information!$H$10="x",'Panel Calculations'!D64,0) -> 0 | H64: =IF(Information!$H$10="x",'Panel Calculations'!E64,0) -> 6.795190206 | J64: 26.85480979 | K64: 0 | L64: =(J64^2+K64^2)^0.5 -> 26.85480979
D65: =D61 -> 0 | E65: =E61 -> 4.895190206 | G65: =IF(Information!$H$10="x",'Panel Calculations'!D65,0) -> 0 | H65: =IF(Information!$H$10="x",'Panel Calculations'!E65,0) -> 4.895190206 | J65: 0 | K65: 1.9 | L65: =(J65^2+K65^2)^0.5 -> 1.9
B67: Panel G | C67: (sides) | D67: =D3 -> 0 | E67: =E3 -> 0 | G67: =IF(Information!$H$11="x",'Panel Calculations'!D67,0) -> 0 | H67: =IF(Information!$H$11="x",'Panel Calculations'!E67,0) -> 0
D68: =D67+Information!D11 -> 31.75 | E68: =E67 -> 0 | G68: =IF(Information!$H$11="x",'Panel Calculations'!D68,0) -> 31.75 | H68: =IF(Information!$H$11="x",'Panel Calculations'!E68,0) -> 0 | J68: =D67-D68 -> -31.75 | K68: 0 | L68: =(J68^2+K68^2)^0.5 -> 31.75
D69: =D68 -> 31.75 | E69: =E68+Information!D12 -> 53.34 | G69: =IF(Information!$H$11="x",'Panel Calculations'!D69,0) -> 31.75 | H69: =IF(Information!$H$11="x",'Panel Calculations'!E69,0) -> 53.34 | J69: 0 | K69: -53.34 | L69: =(J69^2+K69^2)^0.5 -> 53.34
D70: =D67 -> 0 | E70: =E69 -> 53.34 | G70: =IF(Information!$H$11="x",'Panel Calculations'!D70,0) -> 0 | H70: =IF(Information!$H$11="x",'Panel Calculations'!E70,0) -> 53.34 | J70: 31.75 | K70: 0 | L70: =(J70^2+K70^2)^0.5 -> 31.75
D71: =D67 -> 0 | E71: =E67 -> 0 | G71: =IF(Information!$H$11="x",'Panel Calculations'!D71,0) -> 0 | H71: =IF(Information!$H$11="x",'Panel Calculations'!E71,0) -> 0 | J71: 0 | K71: 53.34 | L71: =(J71^2+K71^2)^0.5 -> 53.34
B73: Panel H | C73: (port separator) | D73: =D43 -> 0 | E73: =E43 -> 1.9 | G73: =IF(Information!$H$15="x",'Panel Calculations'!D73,0) -> 0 | H73: =IF(Information!$H$15="x",'Panel Calculations'!E73,0) -> 1.9
D74: =D50 -> 29.85 | E74: =E73 -> 1.9 | G74: =IF(Information!$H$15="x",'Panel Calculations'!D74,0) -> 29.85 | H74: =IF(Information!$H$15="x",'Panel Calculations'!E74,0) -> 1.9 | J74: =D73-D74 -> -29.85 | K74: =E73-E74 -> 0 | L74: =(J74^2+K74^2)^0.5 -> 29.85
D75: =D74 -> 29.85 | E75: =E62 -> 4.895190206 | G75: =IF(Information!$H$15="x",'Panel Calculations'!D75,0) -> 29.85 | H75: =IF(Information!$H$15="x",'Panel Calculations'!E75,0) -> 4.895190206 | J75: 0 | K75: -2.995190206 | L75: =(J75^2+K75^2)^0.5 -> 2.995190206
D76: =D73 -> 0 | E76: =E75 -> 4.895190206 | G76: =IF(Information!$H$15="x",'Panel Calculations'!D76,0) -> 0 | H76: =IF(Information!$H$15="x",'Panel Calculations'!E76,0) -> 4.895190206 | J76: 29.85 | K76: 0 | L76: =(J76^2+K76^2)^0.5 -> 29.85
D77: =D73 -> 0 | E77: =E73 -> 1.9 | G77: =IF(Information!$H$15="x",'Panel Calculations'!D77,0) -> 0 | H77: =IF(Information!$H$15="x",'Panel Calculations'!E77,0) -> 1.9 | J77: 0 | K77: 2.995190206 | L77: =(J77^2+K77^2)^0.5 -> 2.995190206
B79: =IF(Information!H12="x",Information!I12,"") -> Panel I | D79: =D63 -> 26.85480979 | E79: =E63 -> 6.795190206 | G79: =IF(B79<>"",'Panel Calculations'!D79,0) -> 26.85480979 | H79: =IF(B79<>"",'Panel Calculations'!E79,0) -> 6.795190206
D80: =D79 -> 26.85480979 | E80: =E79+Information!$F$54 -> 24.09519021 | G80: =IF(B79<>"",'Panel Calculations'!D80,0) -> 26.85480979 | H80: =IF(B79<>"",'Panel Calculations'!E80,0) -> 24.09519021 | J80: =D79-D80 -> 0 | K80: =E79-E80 -> -17.3 | L80: =(J80^2+K80^2)^0.5 -> 17.3
D81: =D80-Information!$D$54 -> 24.95480979 | E81: =E80 -> 24.09519021 | G81: =IF(B79<>"",'Panel Calculations'!D81,0) -> 24.95480979 | H81: =IF(B79<>"",'Panel Calculations'!E81,0) -> 24.09519021 | J81: 1.9 | K81: 0 | L81: =(J81^2+K81^2)^0.5 -> 1.9
D82: =D81 -> 24.95480979 | E82: =E79 -> 6.795190206 | G82: =IF(B79<>"",'Panel Calculations'!D82,0) -> 24.95480979 | H82: =IF(B79<>"",'Panel Calculations'!E82,0) -> 6.795190206 | J82: 0 | K82: 17.3 | L82: =(J82^2+K82^2)^0.5 -> 17.3
D83: =D79 -> 26.85480979 | E83: =E79 -> 6.795190206 | G83: =IF(B79<>"",'Panel Calculations'!D83,0) -> 26.85480979 | H83: =IF(B79<>"",'Panel Calculations'!E83,0) -> 6.795190206 | J83: -1.9 | K83: 0 | L83: =(J83^2+K83^2)^0.5 -> 1.9
B85: =IF(Information!H13="x",Information!I13,"") -> Panel J | D85: =D62 -> 26.85480979 | E85: =E62 -> 4.895190206 | G85: =IF(B85<>"",'Panel Calculations'!D85,0) -> 26.85480979 | H85: =IF(B85<>"",'Panel Calculations'!E85,0) -> 4.895190206
D86: =D74 -> 29.85 | E86: =E85 -> 4.895190206 | G86: =IF(B85<>"",'Panel Calculations'!D86,0) -> 29.85 | H86: =IF(B85<>"",'Panel Calculations'!E86,0) -> 4.895190206 | J86: =D85-D86 -> -2.995190206 | K86: =E85-E86 -> 0 | L86: =(J86^2+K86^2)^0.5 -> 2.995190206
D87: =D86 -> 29.85 | E87: =E80 -> 24.09519021 | G87: =IF(B85<>"",'Panel Calculations'!D87,0) -> 29.85 | H87: =IF(B85<>"",'Panel Calculations'!E87,0) -> 24.09519021 | J87: 0 | K87: -19.2 | L87: =(J87^2+K87^2)^0.5 -> 19.2
D88: =D85 -> 26.85480979 | E88: =E87 -> 24.09519021 | G88: =IF(B85<>"",'Panel Calculations'!D88,0) -> 26.85480979 | H88: =IF(B85<>"",'Panel Calculations'!E88,0) -> 24.09519021 | J88: 2.995190206 | K88: 0 | L88: =(J88^2+K88^2)^0.5 -> 2.995190206
D89: =D85 -> 26.85480979 | E89: =E85 -> 4.895190206 | G89: =IF(B85<>"",'Panel Calculations'!D89,0) -> 26.85480979 | H89: =IF(B85<>"",'Panel Calculations'!E89,0) -> 4.895190206 | J89: 0 | K89: 19.2 | L89: =(J89^2+K89^2)^0.5 -> 19.2
B91: =IF(Information!H14="x",Information!I14,"") -> Panel K | D91: =D57 -> 19.240789 | E91: =E57 -> 29.76383075 | G91: =IF(B91<>"",'Panel Calculations'!D91,0) -> 19.240789 | H91: =IF(B91<>"",'Panel Calculations'!E91,0) -> 29.76383075
D92: =D91-Information!F56*Q22 -> 15.78085127 | E92: =E91-Information!F56*P22 -> 16.41066258 | G92: =IF(B91<>"",'Panel Calculations'!D92,0) -> 15.78085127 | H92: =IF(B91<>"",'Panel Calculations'!E92,0) -> 16.41066258 | J92: =D91-D92 -> 3.459937724 | K92: =E91-E92 -> 13.35316817 | L92: =(J92^2+K92^2)^0.5 -> 13.79413895
D93: =D92+Information!D56*P22 -> 17.62011211 | E93: =E92-Information!D56*'Panel Calculations'!Q22 -> 15.93409194 | G93: =IF(B91<>"",'Panel Calculations'!D93,0) -> 17.62011211 | H93: =IF(B91<>"",'Panel Calculations'!E93,0) -> 15.93409194 | J93: -1.839260836 | K93: 0.4765706437 | L93: =(J93^2+K93^2)^0.5 -> 1.9
D94: =D93+Information!F56*Q22 -> 21.08004983 | E94: =E93+Information!F56*P22 -> 29.28726011 | G94: =IF(B91<>"",'Panel Calculations'!D94,0) -> 21.08004983 | H94: =IF(B91<>"",'Panel Calculations'!E94,0) -> 29.28726011 | J94: -3.459937724 | K94: -13.35316817 | L94: =(J94^2+K94^2)^0.5 -> 13.79413895
D95: =D91 -> 19.240789 | E95: =E91 -> 29.76383075 | G95: =IF(B91<>"",'Panel Calculations'!D95,0) -> 19.240789 | H95: =IF(B91<>"",'Panel Calculations'!E95,0) -> 29.76383075 | J95: 1.839260836 | K95: -0.4765706437 | L95: =(J95^2+K95^2)^0.5 -> 1.9
B99: Profile View
D100: =D68+10 -> 41.75 | E100: =E67 -> 0 | G100: =IF(Information!$H$17="x",'Panel Calculations'!D100,"") -> 41.75 | H100: =IF(Information!$H$17="x",'Panel Calculations'!E100,"") -> 0
D101: =D100+Information!D13 -> 68.42 | E101: =E100 -> 0 | G101: =IF(Information!$H$17="x",'Panel Calculations'!D101,"") -> 68.42 | H101: =IF(Information!$H$17="x",'Panel Calculations'!E101,"") -> 0 | J101: =D100-D101 -> -26.67 | K101: =E100-E101 -> 0 | L101: =(J101^2+K101^2)^0.5 -> 26.67
D102: =D101 -> 68.42 | E102: =E69 -> 53.34 | G102: =IF(Information!$H$17="x",'Panel Calculations'!D102,"") -> 68.42 | H102: =IF(Information!$H$17="x",'Panel Calculations'!E102,"") -> 53.34 | J102: 0 | K102: -53.34 | L102: =(J102^2+K102^2)^0.5 -> 53.34
D103: =D100 -> 41.75 | E103: =E102 -> 53.34 | G103: =IF(Information!$H$17="x",'Panel Calculations'!D103,"") -> 41.75 | H103: =IF(Information!$H$17="x",'Panel Calculations'!E103,"") -> 53.34 | J103: 26.67 | K103: 0 | L103: =(J103^2+K103^2)^0.5 -> 26.67
D104: =D100 -> 41.75 | E104: =E100 -> 0 | G104: =IF(Information!$H$17="x",'Panel Calculations'!D104,"") -> 41.75 | H104: =IF(Information!$H$17="x",'Panel Calculations'!E104,"") -> 0 | J104: 0 | K104: 53.34 | L104: =(J104^2+K104^2)^0.5 -> 53.34
D106: =D100 -> 41.75 | E106: =E100 -> 0 | G106: =IF(Information!$H$17="x",'Panel Calculations'!D106,"") -> 41.75 | H106: =IF(Information!$H$17="x",'Panel Calculations'!E106,"") -> 0
D107: =D106+Information!D52 -> 43.65 | E107: =E106 -> 0 | G107: =IF(Information!$H$17="x",'Panel Calculations'!D107,"") -> 43.65 | H107: =IF(Information!$H$17="x",'Panel Calculations'!E107,"") -> 0 | J107: =D106-D107 -> -1.9 | K107: =E106-E107 -> 0 | L107: =(J107^2+K107^2)^0.5 -> 1.9
D108: =D107 -> 43.65 | E108: =E102 -> 53.34 | G108: =IF(Information!$H$17="x",'Panel Calculations'!D108,"") -> 43.65 | H108: =IF(Information!$H$17="x",'Panel Calculations'!E108,"") -> 53.34 | J108: 0 | K108: -53.34 | L108: =(J108^2+K108^2)^0.5 -> 53.34
D109: =D106 -> 41.75 | E109: =E108 -> 53.34 | G109: =IF(Information!$H$17="x",'Panel Calculations'!D109,"") -> 41.75 | H109: =IF(Information!$H$17="x",'Panel Calculations'!E109,"") -> 53.34 | J109: 1.9 | K109: 0 | L109: =(J109^2+K109^2)^0.5 -> 1.9
D110: =D106 -> 41.75 | E110: =E106 -> 0 | G110: =IF(Information!$H$17="x",'Panel Calculations'!D110,"") -> 41.75 | H110: =IF(Information!$H$17="x",'Panel Calculations'!E110,"") -> 0 | J110: 0 | K110: 53.34 | L110: =(J110^2+K110^2)^0.5 -> 53.34
D112: =D101-Information!D52 -> 66.52 | E112: =E101 -> 0 | G112: =IF(Information!$H$17="x",'Panel Calculations'!D112,"") -> 66.52 | H112: =IF(Information!$H$17="x",'Panel Calculations'!E112,"") -> 0
D113: =D101 -> 68.42 | E113: =E112 -> 0 | G113: =IF(Information!$H$17="x",'Panel Calculations'!D113,"") -> 68.42 | H113: =IF(Information!$H$17="x",'Panel Calculations'!E113,"") -> 0 | J113: =D112-D113 -> -1.9 | K113: =E112-E113 -> 0 | L113: =(J113^2+K113^2)^0.5 -> 1.9
D114: =D113 -> 68.42 | E114: =E108 -> 53.34 | G114: =IF(Information!$H$17="x",'Panel Calculations'!D114,"") -> 68.42 | H114: =IF(Information!$H$17="x",'Panel Calculations'!E114,"") -> 53.34 | J114: 0 | K114: -53.34 | L114: =(J114^2+K114^2)^0.5 -> 53.34
D115: =D112 -> 66.52 | E115: =E114 -> 53.34 | G115: =IF(Information!$H$17="x",'Panel Calculations'!D115,"") -> 66.52 | H115: =IF(Information!$H$17="x",'Panel Calculations'!E115,"") -> 53.34 | J115: 1.9 | K115: 0 | L115: =(J115^2+K115^2)^0.5 -> 1.9
D116: =D112 -> 66.52 | E116: =E112 -> 0 | G116: =IF(Information!$H$17="x",'Panel Calculations'!D116,"") -> 66.52 | H116: =IF(Information!$H$17="x",'Panel Calculations'!E116,"") -> 0 | J116: 0 | K116: 53.34 | L116: =(J116^2+K116^2)^0.5 -> 53.34
D118: =D107 -> 43.65 | E118: =E107 -> 0 | G118: =IF(Information!$H$17="x",'Panel Calculations'!D118,"") -> 43.65 | H118: =IF(Information!$H$17="x",'Panel Calculations'!E118,"") -> 0
D119: =D107 -> 43.65 | E119: =E118+Information!D47 -> 1.9 | G119: =IF(Information!$H$17="x",'Panel Calculations'!D119,"") -> 43.65 | H119: =IF(Information!$H$17="x",'Panel Calculations'!E119,"") -> 1.9 | J119: =D118-D119 -> 0 | K119: =E118-E119 -> -1.9 | L119: =(J119^2+K119^2)^0.5 -> 1.9
D120: =D112 -> 66.52 | E120: =E119 -> 1.9 | G120: =IF(Information!$H$17="x",'Panel Calculations'!D120,"") -> 66.52 | H120: =IF(Information!$H$17="x",'Panel Calculations'!E120,"") -> 1.9 | J120: -22.87 | K120: 0 | L120: =(J120^2+K120^2)^0.5 -> 22.87
D121: =D120 -> 66.52 | E121: =E118 -> 0 | G121: =IF(Information!$H$17="x",'Panel Calculations'!D121,"") -> 66.52 | H121: =IF(Information!$H$17="x",'Panel Calculations'!E121,"") -> 0 | J121: 0 | K121: 1.9 | L121: =(J121^2+K121^2)^0.5 -> 1.9
D122: =D118 -> 43.65 | E122: =E118 -> 0 | G122: =IF(Information!$H$17="x",'Panel Calculations'!D122,"") -> 43.65 | H122: =IF(Information!$H$17="x",'Panel Calculations'!E122,"") -> 0 | J122: 22.87 | K122: 0 | L122: =(J122^2+K122^2)^0.5 -> 22.87
D124: =D118 -> 43.65 | E124: =E108 -> 53.34 | G124: =IF(Information!$H$17="x",'Panel Calculations'!D124,"") -> 43.65 | H124: =IF(Information!$H$17="x",'Panel Calculations'!E124,"") -> 53.34
D125: =D115 -> 66.52 | E125: =E124+Information!D59 -> 53.34 | G125: =IF(Information!$H$17="x",'Panel Calculations'!D125,"") -> 66.52 | H125: =IF(Information!$H$17="x",'Panel Calculations'!E125,"") -> 53.34 | J125: =D124-D125 -> -22.87 | K125: =E124-E125 -> 0 | L125: =(J125^2+K125^2)^0.5 -> 22.87
D126: =D125 -> 66.52 | E126: =E125-Information!D47 -> 51.44 | G126: =IF(Information!$H$17="x",'Panel Calculations'!D126,"") -> 66.52 | H126: =IF(Information!$H$17="x",'Panel Calculations'!E126,"") -> 51.44 | J126: 0 | K126: 1.9 | L126: =(J126^2+K126^2)^0.5 -> 1.9
D127: =D124 -> 43.65 | E127: =E126 -> 51.44 | G127: =IF(Information!$H$17="x",'Panel Calculations'!D127,"") -> 43.65 | H127: =IF(Information!$H$17="x",'Panel Calculations'!E127,"") -> 51.44 | J127: 22.87 | K127: 0 | L127: =(J127^2+K127^2)^0.5 -> 22.87
D128: =D124 -> 43.65 | E128: =E124 -> 53.34 | G128: =IF(Information!$H$17="x",'Panel Calculations'!D128,"") -> 43.65 | H128: =IF(Information!$H$17="x",'Panel Calculations'!E128,"") -> 53.34 | J128: 0 | K128: -1.9 | L128: =(J128^2+K128^2)^0.5 -> 1.9
D130: =D124 -> 43.65 | E130: =E61 -> 4.895190206 | G130: =IF(Information!$H$17="x",'Panel Calculations'!D130,"") -> 43.65 | H130: =IF(Information!$H$17="x",'Panel Calculations'!E130,"") -> 4.895190206
D131: =D121 -> 66.52 | E131: =E130 -> 4.895190206 | G131: =IF(Information!$H$17="x",'Panel Calculations'!D131,"") -> 66.52 | H131: =IF(Information!$H$17="x",'Panel Calculations'!E131,"") -> 4.895190206 | J131: =D130-D131 -> -22.87 | K131: =E130-E131 -> 0 | L131: =(J131^2+K131^2)^0.5 -> 22.87
D132: =D131 -> 66.52 | E132: =E63 -> 6.795190206 | G132: =IF(Information!$H$17="x",'Panel Calculations'!D132,"") -> 66.52 | H132: =IF(Information!$H$17="x",'Panel Calculations'!E132,"") -> 6.795190206 | J132: 0 | K132: -1.9 | L132: =(J132^2+K132^2)^0.5 -> 1.9
D133: =D130 -> 43.65 | E133: =E132 -> 6.795190206 | G133: =IF(Information!$H$17="x",'Panel Calculations'!D133,"") -> 43.65 | H133: =IF(Information!$H$17="x",'Panel Calculations'!E133,"") -> 6.795190206 | J133: 22.87 | K133: 0 | L133: =(J133^2+K133^2)^0.5 -> 22.87
D134: =D130 -> 43.65 | E134: =E130 -> 4.895190206 | G134: =IF(Information!$H$17="x",'Panel Calculations'!D134,"") -> 43.65 | H134: =IF(Information!$H$17="x",'Panel Calculations'!E134,"") -> 4.895190206 | J134: 0 | K134: 1.9 | L134: =(J134^2+K134^2)^0.5 -> 1.9
D136: =(D108+D120-Information!D53)/2 -> 55.085 | E136: =E120 -> 1.9 | G136: =IF(Information!$H$17="x",'Panel Calculations'!D136,"") -> 55.085 | H136: =IF(Information!$H$17="x",'Panel Calculations'!E136,"") -> 1.9
D137: =D136+Information!D53 -> 55.085 | E137: =E136 -> 1.9 | G137: =IF(Information!$H$17="x",'Panel Calculations'!D137,"") -> 55.085 | H137: =IF(Information!$H$17="x",'Panel Calculations'!E137,"") -> 1.9 | J137: =D136-D137 -> 0 | K137: =E136-E137 -> 0 | L137: =(J137^2+K137^2)^0.5 -> 0
D138: =D137 -> 55.085 | E138: =E75 -> 4.895190206 | G138: =IF(Information!$H$17="x",'Panel Calculations'!D138,"") -> 55.085 | H138: =IF(Information!$H$17="x",'Panel Calculations'!E138,"") -> 4.895190206 | J138: 0 | K138: -2.995190206 | L138: =(J138^2+K138^2)^0.5 -> 2.995190206
D139: =D136 -> 55.085 | E139: =E138 -> 4.895190206 | G139: =IF(Information!$H$17="x",'Panel Calculations'!D139,"") -> 55.085 | H139: =IF(Information!$H$17="x",'Panel Calculations'!E139,"") -> 4.895190206 | J139: 0 | K139: 0 | L139: =(J139^2+K139^2)^0.5 -> 0
D140: =D136 -> 55.085 | E140: =E136 -> 1.9 | G140: =IF(Information!$H$17="x",'Panel Calculations'!D140,"") -> 55.085 | H140: =IF(Information!$H$17="x",'Panel Calculations'!E140,"") -> 1.9 | J140: 0 | K140: 2.995190206 | L140: =(J140^2+K140^2)^0.5 -> 2.995190206

Sheet Path Calculations
B3: Path Calculations | D3: x | E3: y | G3: x | H3: y | J3: d | K3: x | L3: y | M3: dS | N3: d | O3: L | P3: S | Y3: Intersection points | Z3: x1 | AA3: y1 | AB3: x2 | AC3: y2 | AD3: a | AE3: b | AF3: x | AG3: y
D5: =AF6 -> 31.28142044 | E5: =AG6 -> 51.44 | G5: =IF(Information!$H$21="x",D5,0) -> 31.28142044 | H5: =IF(Information!$H$21="x",E5,0) -> 51.44 | I5: =SUM(D5:D6)/2 -> 29.87287981 | J5: =SUM(E5:E6)/2 -> 40.38833141 | K5: =IF(Information!$H$20="x",I5,0) -> 29.87287981 | L5: =IF(Information!$H$20="x",J5,0) -> 40.38833141 | N5: =N4 -> 0 | O5: 0 | P5: =P4 -> 0 | Y5: Sample point | Z5: =D6 -> 28.46433918 | AA5: =E6 -> 29.33666282 | AB5: =Z5+10*'Panel Calculations'!Q23 -> 29.72861726 | AC5: =AA5+10*'Panel Calculations'!P23 -> 39.25642093 | AD5: =(AC5-AA5)/(AB5-Z5) -> 7.84618374 | AE5: =(AC5*Z5-AA5*AB5)/(Z5-AB5) -> -193.9997724
B6: S1 | C6: =C2+1 -> 1 | D6: =('Panel Calculations'!D51+D9)/2 -> 28.46433918 | E6: =('Panel Calculations'!E55+E9)/2 -> 29.33666282 | G6: =IF(Information!$H$21="x",D6,0) -> 28.46433918 | H6: =IF(Information!$H$21="x",E6,0) -> 29.33666282 | K6: =K5 -> 29.87287981 | L6: =L5 -> 40.38833141 | N6: =N5 -> 0 | O6: =O5 -> 0 | P6: 0 | Y6: Panel C | Z6: ='Panel Calculations'!D37 -> 0 | AA6: ='Panel Calculations'!E37 -> 51.44 | AB6: ='Panel Calculations'!D38 -> 31.75 | AC6: ='Panel Calculations'!E38 -> 51.44 | AD6: =(AC6-AA6)/(AB6-Z6) -> 0 | AE6: =(AC6*Z6-AA6*AB6)/(Z6-AB6) -> 51.44 | AF6: =(AE5-AE6)/(AD6-AD5) -> 31.28142044 | AG6: =AF6*AD6+AE6 -> 51.44
K7: =K6 -> 29.87287981 | L7: =L6 -> 40.38833141 | N7: 0 | O7: =O4+N7 -> 0 | P7: =(((D5-D6)^2+(E5-E6)^2)^0.5)*Information!$D$21 -> 509.592387 | Q7: =P7/2 -> 254.7961935 | R7: =-Q7 -> -254.7961935 | S7: =(Q7-T7)*2 -> -0.005894063594 | T7: =(($E$93-$E$92)*(O7-$F$92)/($F$93-$F$92)+$E$92)/2 -> 254.7991406 | U7: =-T7 -> -254.7991406 | V7: =IF(C6>0,L7,"") -> 40.38833141
D8: ='Panel Calculations'!D51 -> 29.85 | E8: =E5 -> 51.44 | G8: =IF(Information!$H$21="x",D8,0) -> 29.85 | H8: =IF(Information!$H$21="x",E8,0) -> 51.44 | I8: =SUM(D8:D9)/2 -> 28.46433918 | J8: =SUM(E8:E9)/2 -> 40.56785061 | K8: =IF(Information!$H$20="x",I8,0) -> 28.46433918 | L8: =IF(Information!$H$20="x",J8,0) -> 40.56785061 | N8: =N7 -> 0 | O8: 0 | P8: =P7 -> 509.592387 | Q8: =P8/2 -> 254.7961935 | R8: =-Q8 -> -254.7961935 | S8: =(Q8-T8)*2 -> -0.005894063594 | T8: =(($E$93-$E$92)*(O8-$F$92)/($F$93-$F$92)+$E$92)/2 -> 254.7991406 | U8: =-T8 -> -254.7991406 | V8: =IF(C9>0,L8,"") -> 40.56785061 | Y8: Sample point | Z8: ='Panel Calculations'!D51 -> 29.85 | AA8: ='Panel Calculations'!E51 -> 51.44 | AB8: =Z8+10*'Panel Calculations'!Q23 -> 31.11427808 | AC8: =AA8+10*'Panel Calculations'!P23 -> 61.35975811 | AD8: =(AC8-AA8)/(AB8-Z8) -> 7.84618374 | AE8: =(AC8*Z8-AA8*AB8)/(Z8-AB8) -> -182.7685847
C9: =C6+1 -> 2 | D9: =AF9 -> 27.07867836 | E9: =AG9 -> 29.69570122 | G9: =IF(Information!$H$21="x",D9,0) -> 27.07867836 | H9: =IF(Information!$H$21="x",E9,0) -> 29.69570122 | K9: =K8 -> 28.46433918 | L9: =L8 -> 40.56785061 | N9: =N8 -> 0 | O9: 0 | P9: =P8 -> 509.592387 | Q9: 254.7961935 | R9: -254.7961935 | S9: -0.005894063594 | T9: =(($E$93-$E$92)*(O9-$F$92)/($F$93-$F$92)+$E$92)/2 -> 254.7991406 | U9: -254.7991406 | V9: =IF(C9>0,L9,"") -> 40.56785061 | Y9: Panel E | Z9: ='Panel Calculations'!D55 -> 29.85 | AA9: ='Panel Calculations'!E55 -> 28.97762442 | AB9: ='Panel Calculations'!D56 -> 19.71735964 | AC9: ='Panel Calculations'!E56 -> 31.60309159 | AD9: =(AC9-AA9)/(AB9-Z9) -> -0.2591098742 | AE9: =(AC9*Z9-AA9*AB9)/(Z9-AB9) -> 36.71205416 | AF9: =(AE8-AE9)/(AD9-AD8) -> 27.07867836 | AG9: =AF9*AD9+AE9 -> 29.69570122
K10: =K9 -> 28.46433918 | L10: =L9 -> 40.56785061 | N10: =((I8-I5)^2+(J8-J5)^2)^0.5 -> 1.419934453 | O10: =O7+N10 -> 1.419934453 | P10: =(((D8-D9)^2+(E8-E9)^2)^0.5)*Information!$D$21 -> 501.3147576 | Q10: 250.6573788 | R10: -250.6573788 | S10: 0 | T10: =(($E$93-$E$92)*(O10-$F$92)/($F$93-$F$92)+$E$92)/2 -> 250.6573788 | U10: -250.6573788 | V10: =IF(C9>0,L10,"") -> 40.56785061
D11: ='Panel Calculations'!D56 -> 19.71735964 | E11: ='Panel Calculations'!E56 -> 31.60309159 | G11: =IF(Information!$H$21="x",D11,0) -> 19.71735964 | H11: =IF(Information!$H$21="x",E11,0) -> 31.60309159 | I11: =SUM(D11:D12)/2 -> 20.97132806 | J11: =SUM(E11:E12)/2 -> 41.52154579 | K11: =IF(Information!$H$20="x",I11,0) -> 20.97132806 | L11: =IF(Information!$H$20="x",J11,0) -> 41.52154579 | N11: =N10 -> 1.419934453 | O11: 1.419934453 | P11: =P10 -> 501.3147576 | Q11: =P11/2 -> 250.6573788 | R11: =-Q11 -> -250.6573788 | S11: =(Q11-T11)*2 -> 0 | T11: =(($E$93-$E$92)*(O11-$F$92)/($F$93-$F$92)+$E$92)/2 -> 250.6573788 | U11: =-T11 -> -250.6573788 | V11: =IF(C12>0,L11,"") -> 41.52154579
C12: =C9+1 -> 3 | D12: =D11+(E5-E11)*'Panel Calculations'!Q23 -> 22.22529649 | E12: =E5 -> 51.44 | G12: =IF(Information!$H$21="x",D12,0) -> 22.22529649 | H12: =IF(Information!$H$21="x",E12,0) -> 51.44 | K12: =K11 -> 20.97132806 | L12: =L11 -> 41.52154579 | N12: =N11 -> 1.419934453 | O12: 1.419934453 | P12: =P11 -> 501.3147576 | Q12: 250.6573788 | R12: -250.6573788 | S12: 0 | T12: =(($E$93-$E$92)*(O12-$F$92)/($F$93-$F$92)+$E$92)/2 -> 250.6573788 | U12: -250.6573788 | V12: =IF(C12>0,L12,"") -> 41.52154579
K13: =K12 -> 20.97132806 | L13: =L12 -> 41.52154579 | N13: =((I11-I8)^2+(J11-J8)^2)^0.5 -> 7.55345948 | O13: =O10+N13 -> 8.973393933 | P13: =(((D11-D12)^2+(E11-E12)^2)^0.5)*Information!$D$21 -> 457.2814509 | Q13: 228.6407255 | R13: -228.6407255 | S13: 0.03158620482 | T13: =(($E$93-$E$92)*(O13-$F$92)/($F$93-$F$92)+$E$92)/2 -> 228.6249324 | U13: -228.6249324 | V13: =IF(C12>0,L13,"") -> 41.52154579
D14: =(D12+'Panel Calculations'!D33)/2 -> 13.01264824 | E14: =E12 -> 51.44 | G14: =IF(Information!$H$21="x",D14,0) -> 13.01264824 | H14: =IF(Information!$H$21="x",E14,0) -> 51.44 | I14: =SUM(D14:D15)/2 -> 16.36500394 | J14: =SUM(E14:E15)/2 -> 41.52154579 | K14: =IF(Information!$H$20="x",I14,0) -> 16.36500394 | L14: =IF(Information!$H$20="x",J14,0) -> 41.52154579 | N14: =N13 -> 7.55345948 | O14: =O13 -> 8.973393933 | P14: 457.2814509 | Q14: 228.6407255 | R14: -228.6407255 | S14: 0.03158620482 | T14: =(($E$93-$E$92)*(O14-$F$92)/($F$93-$F$92)+$E$92)/2 -> 228.6249324 | U14: -228.6249324 | V14: =IF(C15>0,L14,"") -> 41.52154579
C15: =C12+1 -> 4 | D15: =D11 -> 19.71735964 | E15: =E11 -> 31.60309159 | G15: =IF(Information!$H$21="x",D15,0) -> 19.71735964 | H15: =IF(Information!$H$21="x",E15,0) -> 31.60309159 | K15: =K14 -> 16.36500394 | L15: =L14 -> 41.52154579 | N15: =N14 -> 7.55345948 | O15: =O14 -> 8.973393933 | P15: 457.2814509 | Q15: 228.6407255 | R15: -228.6407255 | S15: 0.03158620482 | T15: =(($E$93-$E$92)*(O15-$F$92)/($F$93-$F$92)+$E$92)/2 -> 228.6249324 | U15: -228.6249324 | V15: =IF(C15>0,L15,"") -> 41.52154579
K16: =K15 -> 16.36500394 | L16: =L15 -> 41.52154579 | N16: =((I14-I11)^2+(J14-J11)^2)^0.5 -> 4.606324121 | O16: =O13+N16 -> 13.57971805 | P16: =(((D14-D15)^2+(E14-E15)^2)^0.5)*Information!$D$21 -> 478.8827772 | Q16: 239.4413886 | R16: -239.4413886 | S16: 48.50499393 | T16: =(($E$93-$E$92)*(O16-$F$92)/($F$93-$F$92)+$E$92)/2 -> 215.1888916 | U16: -215.1888916 | V16: =IF(C15>0,L16,"") -> 41.52154579
D17: ='Panel Calculations'!D33 -> 3.8 | E17: =(E14+E20)/2 -> 42.52774424 | G17: =IF(Information!$H$21="x",D17,0) -> 3.8 | H17: =IF(Information!$H$21="x",E17,0) -> 42.52774424 | I17: =SUM(D17:D18)/2 -> 11.75867982 | J17: =SUM(E17:E18)/2 -> 37.06541791 | K17: =IF(Information!$H$20="x",I17,0) -> 11.75867982 | L17: =IF(Information!$H$20="x",J17,0) -> 37.06541791 | N17: =N16 -> 4.606324121 | O17: =O16 -> 13.57971805 | P17: 478.8827772 | Q17: 239.4413886 | R17: -239.4413886 | S17: 48.50499393 | T17: =(($E$93-$E$92)*(O17-$F$92)/($F$93-$F$92)+$E$92)/2 -> 215.1888916 | U17: -215.1888916 | V17: =IF(C18>0,L17,"") -> 37.06541791
C18: =C15+1 -> 5 | D18: =D15 -> 19.71735964 | E18: =E15 -> 31.60309159 | G18: =IF(Information!$H$21="x",D18,0) -> 19.71735964 | H18: =IF(Information!$H$21="x",E18,0) -> 31.60309159 | K18: =K17 -> 11.75867982 | L18: =L17 -> 37.06541791 | N18: =N17 -> 4.606324121 | O18: =O17 -> 13.57971805 | P18: 478.8827772 | Q18: 239.4413886 | R18: -239.4413886 | S18: 48.50499393 | T18: =(($E$93-$E$92)*(O18-$F$92)/($F$93-$F$92)+$E$92)/2 -> 215.1888916 | U18: -215.1888916 | V18: =IF(C18>0,L18,"") -> 37.06541791
K19: =K18 -> 11.75867982 | L19: =L18 -> 37.06541791 | N19: =((I17-I14)^2+(J17-J14)^2)^0.5 -> 6.409001296 | O19: =O16+N19 -> 19.98871935 | P19: =(((D17-D18)^2+(E17-E18)^2)^0.5)*Information!$D$21 -> 441.5215491 | Q19: 220.7607745 | R19: -220.7607745 | S19: 48.5321911 | T19: =(($E$93-$E$92)*(O19-$F$92)/($F$93-$F$92)+$E$92)/2 -> 196.494679 | U19: -196.494679 | V19: =IF(C18>0,L19,"") -> 37.06541791
D20: =D17 -> 3.8 | E20: =E21+(D21-D20)*'Panel Calculations'!Q23 -> 33.61548847 | G20: =IF(Information!$H$21="x",D20,0) -> 3.8 | H20: =IF(Information!$H$21="x",E20,0) -> 33.61548847 | I20: =SUM(D20:D21)/2 -> 11.75867982 | J20: =SUM(E20:E21)/2 -> 32.60929003 | K20: =IF(Information!$H$20="x",I20,0) -> 11.75867982 | L20: =IF(Information!$H$20="x",J20,0) -> 32.60929003 | N20: =N19 -> 6.409001296 | O20: 19.98871935 | P20: 441.5215491 | Q20: 220.7607745 | R20: -220.7607745 | S20: 48.5321911 | T20: =(($E$93-$E$92)*(O20-$F$92)/($F$93-$F$92)+$E$92)/2 -> 196.494679 | U20: -196.494679 | V20: =IF(C21>0,L20,"") -> 32.60929003
C21: =C18+1 -> 6 | D21: =D18 -> 19.71735964 | E21: =E18 -> 31.60309159 | G21: =IF(Information!$H$21="x",D21,0) -> 19.71735964 | H21: =IF(Information!$H$21="x",E21,0) -> 31.60309159 | K21: =K20 -> 11.75867982 | L21: =L20 -> 32.60929003 | N21: =N20 -> 6.409001296 | O21: 19.98871935 | P21: 441.5215491 | Q21: 220.7607745 | R21: -220.7607745 | S21: 48.5321911 | T21: =(($E$93-$E$92)*(O21-$F$92)/($F$93-$F$92)+$E$92)/2 -> 196.494679 | U21: -196.494679 | V21: =IF(C21>0,L21,"") -> 32.60929003
K22: =K21 -> 11.75867982 | L22: =L21 -> 32.60929003 | N22: =((I20-I17)^2+(J20-J17)^2)^0.5 -> 4.456127882 | O22: =O19+N22 -> 24.44484723 | P22: =(((D20-D21)^2+(E20-E21)^2)^0.5)*Information!$D$21 -> 366.9278075 | Q22: 183.4639037 | R22: -183.4639037 | S22: -0.06567433613 | T22: =(($E$93-$E$92)*(O22-$F$92)/($F$93-$F$92)+$E$92)/2 -> 183.4967409 | U22: -183.4967409 | V22: =IF(C21>0,L22,"") -> 32.60929003
D23: =D20 -> 3.8 | E23: =E24+(D24-D23)*'Panel Calculations'!Q23 -> 17.92537534 | G23: =IF(Information!$H$21="x",D23,0) -> 3.8 | H23: =IF(Information!$H$21="x",E23,0) -> 17.92537534 | I23: =SUM(D23:D24)/2 -> 9.790425636 | J23: =SUM(E23:E24)/2 -> 17.16801896 | K23: =IF(Information!$H$20="x",I23,0) -> 9.790425636 | L23: =IF(Information!$H$20="x",J23,0) -> 17.16801896 | N23: =N22 -> 4.456127882 | O23: 24.44484723 | P23: 366.9278075 | Q23: 183.4639037 | R23: -183.4639037 | S23: -0.06567433613 | T23: =(($E$93-$E$92)*(O23-$F$92)/($F$93-$F$92)+$E$92)/2 -> 183.4967409 | U23: -183.4967409 | V23: =IF(C24>0,L23,"") -> 17.16801896
C24: =C21+1 -> 7 | D24: ='Panel Calculations'!$D$92 -> 15.78085127 | E24: ='Panel Calculations'!$E$92 -> 16.41066258 | G24: =IF(Information!$H$21="x",D24,0) -> 15.78085127 | H24: =IF(Information!$H$21="x",E24,0) -> 16.41066258 | K24: =K23 -> 9.790425636 | L24: =L23 -> 17.16801896 | N24: =N23 -> 4.456127882 | O24: 24.44484723 | P24: 366.9278075 | Q24: 183.4639037 | R24: -183.4639037 | S24: -0.06567433613 | T24: =(($E$93-$E$92)*(O24-$F$92)/($F$93-$F$92)+$E$92)/2 -> 183.4967409 | U24: -183.4967409 | V24: =IF(C24>0,L24,"") -> 17.16801896
K25: =K24 -> 9.790425636 | L25: =L24 -> 17.16801896 | N25: =((I23-I20)^2+(J23-J20)^2)^0.5 -> 15.56620945 | O25: =O22+N25 -> 40.01105668 | P25: =(((D23-D24)^2+(E23-E24)^2)^0.5)*Information!$D$21 -> 276.1832105 | Q25: 138.0916053 | R25: -138.0916053 | S25: -0.001105874141 | T25: =(($E$93-$E$92)*(O25-$F$92)/($F$93-$F$92)+$E$92)/2 -> 138.0921582 | U25: -138.0921582 | V25: =IF(C24>0,L25,"") -> 17.16801896
D26: =D17 -> 3.8 | E26: =(E23+E29)/2 -> 12.36028277 | G26: =IF(Information!$H$21="x",D26,0) -> 3.8 | H26: =IF(Information!$H$21="x",E26,0) -> 12.36028277 | I26: =SUM(D26:D27)/2 -> 9.790425636 | J26: =SUM(E26:E27)/2 -> 14.38547268 | K26: =IF(Information!$H$20="x",I26,0) -> 9.790425636 | L26: =IF(Information!$H$20="x",J26,0) -> 14.38547268 | N26: =N25 -> 15.56620945 | O26: 40.01105668 | P26: 276.1832105 | Q26: 138.0916053 | R26: -138.0916053 | S26: -0.001105874141 | T26: =(($E$93-$E$92)*(O26-$F$92)/($F$93-$F$92)+$E$92)/2 -> 138.0921582 | U26: -138.0921582 | V26: =IF(C27>0,L26,"") -> 14.38547268
C27: =C24+1 -> 8 | D27: =D24 -> 15.78085127 | E27: =E24 -> 16.41066258 | G27: =IF(Information!$H$21="x",D27,0) -> 15.78085127 | H27: =IF(Information!$H$21="x",E27,0) -> 16.41066258 | K27: =K26 -> 9.790425636 | L27: =L26 -> 14.38547268 | N27: =N26 -> 15.56620945 | O27: 40.01105668 | P27: 276.1832105 | Q27: 138.0916053 | R27: -138.0916053 | S27: -0.001105874141 | T27: =(($E$93-$E$92)*(O27-$F$92)/($F$93-$F$92)+$E$92)/2 -> 138.0921582 | U27: -138.0921582 | V27: =IF(C27>0,L27,"") -> 14.38547268
K28: =K27 -> 9.790425636 | L28: =L27 -> 14.38547268 | N28: =((I26-I23)^2+(J26-J23)^2)^0.5 -> 2.782546285 | O28: =O25+N28 -> 42.79360297 | P28: =(((D26-D27)^2+(E26-E27)^2)^0.5)*Information!$D$21 -> 289.2366773 | Q28: 144.6183386 | R28: -144.6183386 | S28: 29.28500292 | T28: =(($E$93-$E$92)*(O28-$F$92)/($F$93-$F$92)+$E$92)/2 -> 129.9758372 | U28: -129.9758372 | V28: =IF(C27>0,L28,"") -> 14.38547268
D29: =(D26+D32)/2 -> 9.17767728 | E29: ='Panel Calculations'!E63 -> 6.795190206 | G29: =IF(Information!$H$21="x",D29,0) -> 9.17767728 | H29: =IF(Information!$H$21="x",E29,0) -> 6.795190206 | I29: =SUM(D29:D30)/2 -> 12.47926428 | J29: =SUM(E29:E30)/2 -> 11.60292639 | K29: =IF(Information!$H$20="x",I29,0) -> 12.47926428 | L29: =IF(Information!$H$20="x",J29,0) -> 11.60292639 | N29: =N28 -> 2.782546285 | O29: 42.79360297 | P29: 289.2366773 | Q29: 144.6183386 | R29: -144.6183386 | S29: 29.28500292 | T29: =(($E$93-$E$92)*(O29-$F$92)/($F$93-$F$92)+$E$92)/2 -> 129.9758372 | U29: -129.9758372 | V29: =IF(C30>0,L29,"") -> 11.60292639
C30: =C27+1 -> 9 | D30: =D27 -> 15.78085127 | E30: =E27 -> 16.41066258 | G30: =IF(Information!$H$21="x",D30,0) -> 15.78085127 | H30: =IF(Information!$H$21="x",E30,0) -> 16.41066258 | K30: =K29 -> 12.47926428 | L30: =L29 -> 11.60292639 | N30: =N29 -> 2.782546285 | O30: 42.79360297 | P30: 289.2366773 | Q30: 144.6183386 | R30: -144.6183386 | S30: 29.28500292 | T30: =(($E$93-$E$92)*(O30-$F$92)/($F$93-$F$92)+$E$92)/2 -> 129.9758372 | U30: -129.9758372 | V30: =IF(C30>0,L30,"") -> 11.60292639
K31: =K30 -> 12.47926428 | L31: =L30 -> 11.60292639 | N31: =((I29-I26)^2+(J29-J26)^2)^0.5 -> 3.869420765 | O31: =O28+N31 -> 46.66302373 | P31: =(((D29-D30)^2+(E29-E30)^2)^0.5)*Information!$D$21 -> 266.765797 | Q31: 133.3828985 | R31: -133.3828985 | S31: 29.387304 | T31: =(($E$93-$E$92)*(O31-$F$92)/($F$93-$F$92)+$E$92)/2 -> 118.6892465 | U31: -118.6892465 | V31: =IF(C30>0,L31,"") -> 11.60292639
D32: =AF33 -> 14.55535456 | E32: =AG33 -> 6.795190206 | G32: =IF(Information!$H$21="x",D32,0) -> 14.55535456 | H32: =IF(Information!$H$21="x",E32,0) -> 6.795190206 | I32: =SUM(D32:D33)/2 -> 15.16810292 | J32: =SUM(E32:E33)/2 -> 11.60292639 | K32: =IF(Information!$H$20="x",I32,0) -> 15.16810292 | L32: =IF(Information!$H$20="x",J32,0) -> 11.60292639 | N32: =N31 -> 3.869420765 | O32: 46.66302373 | P32: 266.765797 | Q32: 133.3828985 | R32: -133.3828985 | S32: 29.387304 | T32: =(($E$93-$E$92)*(O32-$F$92)/($F$93-$F$92)+$E$92)/2 -> 118.6892465 | U32: -118.6892465 | V32: =IF(C33>0,L32,"") -> 11.60292639 | Y32: Sample Point | Z32: ='Panel Calculations'!D92 -> 15.78085127 | AA32: ='Panel Calculations'!E92 -> 16.41066258 | AB32: =Z32-10*'Panel Calculations'!Q23 -> 14.51657319 | AC32: =AA32-10*'Panel Calculations'!P23 -> 6.490904472 | AD32: =(AC32-AA32)/(AB32-Z32) -> 7.84618374 | AE32: =(AC32*Z32-AA32*AB32)/(Z32-AB32) -> -107.4087961
C33: =C30+1 -> 10 | D33: =D30 -> 15.78085127 | E33: =E30 -> 16.41066258 | G33: =IF(Information!$H$21="x",D33,0) -> 15.78085127 | H33: =IF(Information!$H$21="x",E33,0) -> 16.41066258 | K33: =K32 -> 15.16810292 | L33: =L32 -> 11.60292639 | N33: =N32 -> 3.869420765 | O33: 46.66302373 | P33: 266.765797 | Q33: 133.3828985 | R33: -133.3828985 | S33: 29.387304 | T33: =(($E$93-$E$92)*(O33-$F$92)/($F$93-$F$92)+$E$92)/2 -> 118.6892465 | U33: -118.6892465 | V33: =IF(C33>0,L33,"") -> 11.60292639 | Y33: Sample Point | Z33: ='Panel Calculations'!D64 -> 0 | AA33: ='Panel Calculations'!E64 -> 6.795190206 | AB33: ='Panel Calculations'!D63 -> 26.85480979 | AC33: ='Panel Calculations'!E63 -> 6.795190206 | AD33: =(AC33-AA33)/(AB33-Z33) -> 0 | AE33: =(AC33*Z33-AA33*AB33)/(Z33-AB33) -> 6.795190206 | AF33: =(AE32-AE33)/(AD33-AD32) -> 14.55535456 | AG33: =AF33*AD33+AE33 -> 6.795190206
K34: =K33 -> 15.16810292 | L34: =L33 -> 11.60292639 | N34: =((I32-I29)^2+(J32-J29)^2)^0.5 -> 2.68883864 | O34: =O31+N34 -> 49.35186237 | P34: =(((D32-D33)^2+(E32-E33)^2)^0.5)*Information!$D$21 -> 221.6846931 | Q34: 110.8423466 | R34: -110.8423466 | S34: -0.007823523344 | T34: =(($E$93-$E$92)*(O34-$F$92)/($F$93-$F$92)+$E$92)/2 -> 110.8462583 | U34: -110.8462583 | V34: =IF(C33>0,L34,"") -> 11.60292639
D35: =AF36 -> 16.45535456 | E35: =AG36 -> 6.795190206 | G35: =IF(Information!$H$21="x",D35,0) -> 16.45535456 | H35: =IF(Information!$H$21="x",E35,0) -> 6.795190206 | I35: =SUM(D35:D36)/2 -> 17.03773333 | J35: =SUM(E35:E36)/2 -> 11.36464107 | K35: =IF(Information!$H$20="x",I35,0) -> 17.03773333 | L35: =IF(Information!$H$20="x",J35,0) -> 11.36464107 | N35: =N34 -> 2.68883864 | O35: 49.35186237 | P35: 221.6846931 | Q35: =P35/2 -> 110.8423466 | R35: =-Q35 -> -110.8423466 | S35: =(Q35-T35)*2 -> -0.007823523344 | T35: =(($E$93-$E$92)*(O35-$F$92)/($F$93-$F$92)+$E$92)/2 -> 110.8462583 | U35: =-T35 -> -110.8462583 | V35: =IF(C36>0,L35,"") -> 11.36464107 | Y35: Sample Point | Z35: =D36 -> 17.62011211 | AA35: =E36 -> 15.93409194 | AB35: =Z35-10*'Panel Calculations'!Q23 -> 16.35583403 | AC35: =AA35-10*'Panel Calculations'!P23 -> 6.014333828 | AD35: =(AC35-AA35)/(AB35-Z35) -> 7.84618374 | AE35: =(AC35*Z35-AA35*AB35)/(Z35-AB35) -> -122.3165452
C36: =C33+1 -> 11 | D36: ='Panel Calculations'!D93 -> 17.62011211 | E36: ='Panel Calculations'!E93 -> 15.93409194 | G36: =IF(Information!$H$21="x",D36,0) -> 17.62011211 | H36: =IF(Information!$H$21="x",E36,0) -> 15.93409194 | K36: =K35 -> 17.03773333 | L36: =L35 -> 11.36464107 | N36: =N35 -> 2.68883864 | O36: 49.35186237 | P36: 221.6846931 | Q36: 110.8423466 | R36: -110.8423466 | S36: -0.007823523344 | T36: =(($E$93-$E$92)*(O36-$F$92)/($F$93-$F$92)+$E$92)/2 -> 110.8462583 | U36: -110.8462583 | V36: =IF(C36>0,L36,"") -> 11.36464107 | Y36: Sample Point | Z36: =Z33 -> 0 | AA36: =AA33 -> 6.795190206 | AB36: =AB33 -> 26.85480979 | AC36: =AC33 -> 6.795190206 | AD36: =(AC36-AA36)/(AB36-Z36) -> 0 | AE36: =(AC36*Z36-AA36*AB36)/(Z36-AB36) -> 6.795190206 | AF36: =(AE35-AE36)/(AD36-AD35) -> 16.45535456 | AG36: =AF36*AD36+AE36 -> 6.795190206
K37: =K36 -> 17.03773333 | L37: =L36 -> 11.36464107 | N37: =((I35-I32)^2+(J35-J32)^2)^0.5 -> 1.884754041 | O37: =O34+N37 -> 51.23661641 | P37: =(((D35-D36)^2+(E35-E36)^2)^0.5)*Information!$D$21 -> 210.697358 | Q37: 105.348679 | R37: -105.348679 | S37: -2.124252774e-08 | T37: =(($E$93-$E$92)*(O37-$F$92)/($F$93-$F$92)+$E$92)/2 -> 105.348679 | U37: -105.348679 | V37: =IF(C36>0,L37,"") -> 11.36464107
D38: =(D35+'Panel Calculations'!D82)/2 -> 20.70508218 | E38: =(E35+'Panel Calculations'!E82)/2 -> 6.795190206 | G38: =IF(Information!$H$21="x",D38,0) -> 20.70508218 | H38: =IF(Information!$H$21="x",E38,0) -> 6.795190206 | I38: =SUM(D38:D39)/2 -> 19.16259714 | J38: =SUM(E38:E39)/2 -> 11.36464107 | K38: =IF(Information!$H$20="x",I38,0) -> 19.16259714 | L38: =IF(Information!$H$20="x",J38,0) -> 11.36464107 | N38: =N37 -> 1.884754041 | O38: 51.23661641 | P38: 210.697358 | Q38: =P38/2 -> 105.348679 | R38: =-Q38 -> -105.348679 | S38: =(Q38-T38)*2 -> -2.124252774e-08 | T38: =(($E$93-$E$92)*(O38-$F$92)/($F$93-$F$92)+$E$92)/2 -> 105.348679 | U38: =-T38 -> -105.348679 | V38: =IF(C39>0,L38,"") -> 11.36464107
C39: =C36+1 -> 12 | D39: =D36 -> 17.62011211 | E39: =E36 -> 15.93409194 | G39: =IF(Information!$H$21="x",D39,0) -> 17.62011211 | H39: =IF(Information!$H$21="x",E39,0) -> 15.93409194 | K39: =K38 -> 19.16259714 | L39: =L38 -> 11.36464107 | N39: =N38 -> 1.884754041 | O39: 51.23661641 | P39: 210.697358 | Q39: 105.348679 | R39: -105.348679 | S39: -2.124252774e-08 | T39: =(($E$93-$E$92)*(O39-$F$92)/($F$93-$F$92)+$E$92)/2 -> 105.348679 | U39: -105.348679 | V39: =IF(C39>0,L39,"") -> 11.36464107
K40: =K39 -> 19.16259714 | L40: =L39 -> 11.36464107 | N40: =((I38-I35)^2+(J38-J35)^2)^0.5 -> 2.124863809 | O40: =O37+N40 -> 53.36148022 | P40: =(((D38-D39)^2+(E38-E39)^2)^0.5)*Information!$D$21 -> 220.593646 | Q40: 110.296823 | R40: -110.296823 | S40: 22.29218362 | T40: =(($E$93-$E$92)*(O40-$F$92)/($F$93-$F$92)+$E$92)/2 -> 99.15073117 | U40: -99.15073117 | V40: =IF(C39>0,L40,"") -> 11.36464107
D41: =D44 -> 24.95480979 | E41: =(E38+E44)/2 -> 10.89723565 | G41: =IF(Information!$H$21="x",D41,0) -> 24.95480979 | H41: =IF(Information!$H$21="x",E41,0) -> 10.89723565 | I41: =SUM(D41:D42)/2 -> 21.28746095 | J41: =SUM(E41:E42)/2 -> 13.41566379 | K41: =IF(Information!$H$20="x",I41,0) -> 21.28746095 | L41: =IF(Information!$H$20="x",J41,0) -> 13.41566379 | N41: =N40 -> 2.124863809 | O41: 53.36148022 | P41: 220.593646 | Q41: =P41/2 -> 110.296823 | R41: =-Q41 -> -110.296823 | S41: =(Q41-T41)*2 -> 22.29218362 | T41: =(($E$93-$E$92)*(O41-$F$92)/($F$93-$F$92)+$E$92)/2 -> 99.15073117 | U41: =-T41 -> -99.15073117 | V41: =IF(C42>0,L41,"") -> 13.41566379
C42: =C39+1 -> 13 | D42: =D39 -> 17.62011211 | E42: =E39 -> 15.93409194 | G42: =IF(Information!$H$21="x",D42,0) -> 17.62011211 | H42: =IF(Information!$H$21="x",E42,0) -> 15.93409194 | K42: =K41 -> 21.28746095 | L42: =L41 -> 13.41566379 | N42: =N41 -> 2.124863809 | O42: 53.36148022 | P42: 220.593646 | Q42: 110.296823 | R42: -110.296823 | S42: 22.29218362 | T42: =(($E$93-$E$92)*(O42-$F$92)/($F$93-$F$92)+$E$92)/2 -> 99.15073117 | U42: -99.15073117 | V42: =IF(C42>0,L42,"") -> 13.41566379
K43: =K42 -> 21.28746095 | L43: =L42 -> 13.41566379 | N43: =((I41-I38)^2+(J41-J38)^2)^0.5 -> 2.953259285 | O43: =O40+N43 -> 56.31473951 | P43: =(((D41-D42)^2+(E41-E42)^2)^0.5)*Information!$D$21 -> 203.4886591 | Q43: 101.7443295 | R43: -101.7443295 | S43: 22.41573345 | T43: =(($E$93-$E$92)*(O43-$F$92)/($F$93-$F$92)+$E$92)/2 -> 90.53646282 | U43: -90.53646282 | V43: =IF(C42>0,L43,"") -> 13.41566379
D44: =AF45 -> 24.95480979 | E44: =AG45 -> 14.99928109 | G44: =IF(Information!$H$21="x",D44,0) -> 24.95480979 | H44: =IF(Information!$H$21="x",E44,0) -> 14.99928109 | I44: =SUM(D44:D45)/2 -> 21.28746095 | J44: =SUM(E44:E45)/2 -> 15.46668651 | K44: =IF(Information!$H$20="x",I44,0) -> 21.28746095 | L44: =IF(Information!$H$20="x",J44,0) -> 15.46668651 | N44: =N43 -> 2.953259285 | O44: 56.31473951 | P44: 203.4886591 | Q44: 101.7443295 | R44: -101.7443295 | S44: 22.41573345 | T44: =(($E$93-$E$92)*(O44-$F$92)/($F$93-$F$92)+$E$92)/2 -> 90.53646282 | U44: -90.53646282 | V44: =IF(C45>0,L44,"") -> 15.46668651 | Y44: Sample Point | Z44: =D54 -> 24.95480979 | AA44: =E54 -> 24.09519021 | AB44: ='Panel Calculations'!$D$82 -> 24.95480979 | AC44: ='Panel Calculations'!$D$82 -> 24.95480979 | AD44: =IF(AB44-Z44<>0,(AC44-AA44)/(AB44-Z44),"vertical") -> vertical | AE44: =IF(AD44<>"vertical",(AC44*Z44-AA44*AB44)/(Z44-AB44),AA44) -> 24.09519021
C45: =C42+1 -> 14 | D45: =D39 -> 17.62011211 | E45: =E39 -> 15.93409194 | G45: =IF(Information!$H$21="x",D45,0) -> 17.62011211 | H45: =IF(Information!$H$21="x",E45,0) -> 15.93409194 | K45: =K44 -> 21.28746095 | L45: =L44 -> 15.46668651 | N45: =N44 -> 2.953259285 | O45: 56.31473951 | P45: 203.4886591 | Q45: 101.7443295 | R45: -101.7443295 | S45: 22.41573345 | T45: =(($E$93-$E$92)*(O45-$F$92)/($F$93-$F$92)+$E$92)/2 -> 90.53646282 | U45: -90.53646282 | V45: =IF(C45>0,L45,"") -> 15.46668651 | Y45: Sample Point | Z45: =D45 -> 17.62011211 | AA45: =E45 -> 15.93409194 | AB45: =Z45+10*'Panel Calculations'!P23 -> 27.53987022 | AC45: =AA45-10*'Panel Calculations'!Q23 -> 14.66981386 | AD45: =(AC45-AA45)/(AB45-Z45) -> -0.1274504948 | AE45: =(AC45*Z45-AA45*AB45)/(Z45-AB45) -> 18.17978394 | AF45: =IF(AD44<>"vertical",(AE44-AE45)/(AD45-AD44),Z44) -> 24.95480979 | AG45: =AF45*AD45+AE45 -> 14.99928109
K46: =K45 -> 21.28746095 | L46: =L45 -> 15.46668651 | N46: =((I44-I41)^2+(J44-J41)^2)^0.5 -> 2.05102272 | O46: =O43+N46 -> 58.36576223 | P46: =(((D44-D45)^2+(E44-E45)^2)^0.5)*Information!$D$21 -> 169.101438 | Q46: 84.55071902 | R46: -84.55071902 | S46: -0.006361354442 | T46: =(($E$93-$E$92)*(O46-$F$92)/($F$93-$F$92)+$E$92)/2 -> 84.5538997 | U46: -84.5538997 | V46: =IF(C45>0,L46,"") -> 15.46668651
D47: =AF48 -> 19.90160856 | E47: =AG48 -> 24.7392232 | G47: =IF(Information!$H$21="x",D47,0) -> 19.90160856 | H47: =IF(Information!$H$21="x",E47,0) -> 24.7392232 | I47: =SUM(D47:D48)/2 -> 22.42820918 | J47: =SUM(E47:E48)/2 -> 24.4172067 | K47: =IF(Information!$H$20="x",I47,0) -> 22.42820918 | L47: =IF(Information!$H$20="x",J47,0) -> 24.4172067 | N47: =N46 -> 2.05102272 | O47: =O46 -> 58.36576223 | P47: =P46 -> 169.101438 | Q47: =P47/2 -> 84.55071902 | R47: =-Q47 -> -84.55071902 | S47: =(Q47-T47)*2 -> -0.006361354442 | T47: =(($E$93-$E$92)*(O47-$F$92)/($F$93-$F$92)+$E$92)/2 -> 84.5538997 | U47: =-T47 -> -84.5538997 | V47: =IF(C48>0,L47,"") -> 24.4172067 | Y47: Sample Point | Z47: =D45 -> 17.62011211 | AA47: =E45 -> 15.93409194 | AB47: ='Panel Calculations'!$D$94 -> 21.08004983 | AC47: ='Panel Calculations'!$E$94 -> 29.28726011 | AD47: =IF(AB47-Z47<>0,(AC47-AA47)/(AB47-Z47),"vertical") -> 3.859366623 | AE47: =IF(AD47<>"vertical",(AC47*Z47-AA47*AB47)/(Z47-AB47),AA47) -> -52.06838062
C48: =C45+1 -> 15 | D48: =D54 -> 24.95480979 | E48: =E54 -> 24.09519021 | G48: =IF(Information!$H$21="x",D48,0) -> 24.95480979 | H48: =IF(Information!$H$21="x",E48,0) -> 24.09519021 | K48: =K47 -> 22.42820918 | L48: =L47 -> 24.4172067 | N48: =N47 -> 2.05102272 | O48: 58.36576223 | P48: 169.101438 | Q48: 84.55071902 | R48: -84.55071902 | S48: -0.006361354442 | T48: =(($E$93-$E$92)*(O48-$F$92)/($F$93-$F$92)+$E$92)/2 -> 84.5538997 | U48: -84.5538997 | V48: =IF(C48>0,L48,"") -> 24.4172067 | Y48: Sample Point | Z48: =D48 -> 24.95480979 | AA48: =E48 -> 24.09519021 | AB48: =Z48-10*'Panel Calculations'!P23 -> 15.03505169 | AC48: =AA48+10*'Panel Calculations'!Q23 -> 25.35946828 | AD48: =(AC48-AA48)/(AB48-Z48) -> -0.1274504948 | AE48: =(AC48*Z48-AA48*AB48)/(Z48-AB48) -> 27.27569306 | AF48: =IF(AD47<>"vertical",(AE47-AE48)/(AD48-AD47),Z47) -> 19.90160856 | AG48: =AF48*AD48+AE48 -> 24.7392232
K49: =K48 -> 22.42820918 | L49: =L48 -> 24.4172067 | N49: =((I47-I44)^2+(J47-J44)^2)^0.5 -> 9.022921823 | O49: =O46+N49 -> 67.38868405 | P49: =(((D47-D48)^2+(E47-E48)^2)^0.5)*Information!$D$21 -> 116.5015426 | Q49: 58.25077131 | R49: -58.25077131 | S49: 0.03109225824 | T49: =(($E$93-$E$92)*(O49-$F$92)/($F$93-$F$92)+$E$92)/2 -> 58.23522518 | U49: -58.23522518 | V49: =IF(C48>0,L49,"") -> 24.4172067
D50: =(D47+'Panel Calculations'!D94)/2 -> 20.4908292 | E50: =(E47+'Panel Calculations'!E94)/2 -> 27.01324165 | G50: =IF(Information!$H$21="x",D50,0) -> 20.4908292 | H50: =IF(Information!$H$21="x",E50,0) -> 27.01324165 | I50: =SUM(D50:D51)/2 -> 22.7228195 | J50: =SUM(E50:E51)/2 -> 25.55421593 | K50: =IF(Information!$H$20="x",I50,0) -> 22.7228195 | L50: =IF(Information!$H$20="x",J50,0) -> 25.55421593 | N50: =N49 -> 9.022921823 | O50: =O49 -> 67.38868405 | P50: =P49 -> 116.5015426 | Q50: =P50/2 -> 58.25077131 | R50: =-Q50 -> -58.25077131 | S50: =(Q50-T50)*2 -> 0.03109225824 | T50: =(($E$93-$E$92)*(O50-$F$92)/($F$93-$F$92)+$E$92)/2 -> 58.23522518 | U50: =-T50 -> -58.23522518 | V50: =IF(C51>0,L50,"") -> 25.55421593
C51: =C48+1 -> 16 | D51: =D48 -> 24.95480979 | E51: =E48 -> 24.09519021 | G51: =IF(Information!$H$21="x",D51,0) -> 24.95480979 | H51: =IF(Information!$H$21="x",E51,0) -> 24.09519021 | K51: =K50 -> 22.7228195 | L51: =L50 -> 25.55421593 | N51: =N50 -> 9.022921823 | O51: 67.38868405 | P51: 116.5015426 | Q51: 58.25077131 | R51: -58.25077131 | S51: 0.03109225824 | T51: =(($E$93-$E$92)*(O51-$F$92)/($F$93-$F$92)+$E$92)/2 -> 58.23522518 | U51: -58.23522518 | V51: =IF(C51>0,L51,"") -> 25.55421593
K52: =K51 -> 22.7228195 | L52: =L51 -> 25.55421593 | N52: =((I50-I47)^2+(J50-J47)^2)^0.5 -> 1.174557457 | O52: =O49+N52 -> 68.56324151 | P52: =(((D50-D51)^2+(E50-E51)^2)^0.5)*Information!$D$21 -> 121.9684075 | Q52: 60.98420373 | R52: -60.98420373 | S52: 12.3500159 | T52: =(($E$93-$E$92)*(O52-$F$92)/($F$93-$F$92)+$E$92)/2 -> 54.80919578 | U52: -54.80919578 | V52: =IF(C51>0,L52,"") -> 25.55421593
D53: =('Panel Calculations'!D94+'Path Calculations'!D56)/2 -> 23.27578451 | E53: =('Panel Calculations'!E94+'Path Calculations'!E56)/2 -> 28.71832357 | G53: =IF(Information!$H$21="x",D53,0) -> 23.27578451 | H53: =IF(Information!$H$21="x",E53,0) -> 28.71832357 | I53: =SUM(D53:D54)/2 -> 24.11529715 | J53: =SUM(E53:E54)/2 -> 26.40675689 | K53: =IF(Information!$H$20="x",I53,0) -> 24.11529715 | L53: =IF(Information!$H$20="x",J53,0) -> 26.40675689 | N53: =N52 -> 1.174557457 | O53: =O52 -> 68.56324151 | P53: =P52 -> 121.9684075 | Q53: 60.98420373 | R53: -60.98420373 | S53: 12.3500159 | T53: =(($E$93-$E$92)*(O53-$F$92)/($F$93-$F$92)+$E$92)/2 -> 54.80919578 | U53: -54.80919578 | V53: =IF(C54>0,L53,"") -> 26.40675689
C54: =C48+1 -> 16 | D54: =D57 -> 24.95480979 | E54: =E57 -> 24.09519021 | G54: =IF(Information!$H$21="x",D54,0) -> 24.95480979 | H54: =IF(Information!$H$21="x",E54,0) -> 24.09519021 | K54: =K53 -> 24.11529715 | L54: =L53 -> 26.40675689 | N54: =N53 -> 1.174557457 | O54: 68.56324151 | P54: 121.9684075 | Q54: 60.98420373 | R54: -60.98420373 | S54: 12.3500159 | T54: =(($E$93-$E$92)*(O54-$F$92)/($F$93-$F$92)+$E$92)/2 -> 54.80919578 | U54: -54.80919578 | V54: =IF(C54>0,L54,"") -> 26.40675689
K55: =K54 -> 24.11529715 | L55: =L54 -> 26.40675689 | N55: =((I53-I50)^2+(J53-J50)^2)^0.5 -> 1.632733937 | O55: =O52+N55 -> 70.19597545 | P55: =(((D53-D54)^2+(E53-E54)^2)^0.5)*Information!$D$21 -> 112.4880613 | Q55: 56.24403066 | R55: -56.24403066 | S55: 12.39460944 | T55: =(($E$93-$E$92)*(O55-$F$92)/($F$93-$F$92)+$E$92)/2 -> 50.04672594 | U55: -50.04672594 | V55: =IF(C54>0,L55,"") -> 26.40675689
D56: =AF57 -> 25.47151919 | E56: =AG57 -> 28.14938703 | G56: =IF(Information!$H$21="x",D56,0) -> 25.47151919 | H56: =IF(Information!$H$21="x",E56,0) -> 28.14938703 | I56: =SUM(D56:D57)/2 -> 25.21316449 | J56: =SUM(E56:E57)/2 -> 26.12228862 | K56: =IF(Information!$H$20="x",I56,0) -> 25.21316449 | L56: =IF(Information!$H$20="x",J56,0) -> 26.12228862 | N56: =N55 -> 1.632733937 | O56: =O55 -> 70.19597545 | P56: =P55 -> 112.4880613 | Q56: 56.24403066 | R56: -56.24403066 | S56: 12.39460944 | T56: =(($E$93-$E$92)*(O56-$F$92)/($F$93-$F$92)+$E$92)/2 -> 50.04672594 | U56: -50.04672594 | V56: =IF(C57>0,L56,"") -> 26.12228862 | Y56: Panel E (bottom) | Z56: =Z59 -> 19.240789 | AA56: =AA59 -> 29.76383075 | AB56: =AB59 -> 29.37342936 | AC56: =AC59 -> 27.13836358 | AD56: =(AC56-AA56)/(AB56-Z56) -> -0.2591098742 | AE56: =(AC56*Z56-AA56*AB56)/(Z56-AB56) -> 34.74930917
C57: =C54+1 -> 17 | D57: ='Panel Calculations'!D81 -> 24.95480979 | E57: ='Panel Calculations'!E81 -> 24.09519021 | G57: =IF(Information!$H$21="x",D57,0) -> 24.95480979 | H57: =IF(Information!$H$21="x",E57,0) -> 24.09519021 | K57: =K56 -> 25.21316449 | L57: =L56 -> 26.12228862 | N57: =N56 -> 1.632733937 | O57: 70.19597545 | P57: 112.4880613 | Q57: 56.24403066 | R57: -56.24403066 | S57: 12.39460944 | T57: =(($E$93-$E$92)*(O57-$F$92)/($F$93-$F$92)+$E$92)/2 -> 50.04672594 | U57: -50.04672594 | V57: =IF(C57>0,L57,"") -> 26.12228862 | Y57: Sample Point | Z57: =D57 -> 24.95480979 | AA57: =E57 -> 24.09519021 | AB57: =Z57+10*'Panel Calculations'!Q23 -> 26.21908787 | AC57: =AA57+10*'Panel Calculations'!P23 -> 34.01494831 | AD57: =(AC57-AA57)/(AB57-Z57) -> 7.84618374 | AE57: =(AC57*Z57-AA57*AB57)/(Z57-AB57) -> -171.7048326 | AF57: =(AE56-AE57)/(AD57-AD56) -> 25.47151919 | AG57: =AF57*AD57+AE57 -> 28.14938703
K58: =K57 -> 25.21316449 | L58: =L57 -> 26.12228862 | N58: =((I56-I53)^2+(J56-J53)^2)^0.5 -> 1.13412296 | O58: =O55+N58 -> 71.33009841 | P58: =(((D56-D57)^2+(E56-E57)^2)^0.5)*Information!$D$21 -> 93.46949842 | Q58: 46.73474921 | R58: -46.73474921 | S58: -0.007778872135 | T58: =(($E$93-$E$92)*(O58-$F$92)/($F$93-$F$92)+$E$92)/2 -> 46.73863865 | U58: -46.73863865 | V58: =IF(C57>0,L58,"") -> 26.12228862
D59: =AF60 -> 27.31078002 | E59: =AG60 -> 27.67281639 | G59: =IF(Information!$H$21="x",D59,0) -> 27.31078002 | H59: =IF(Information!$H$21="x",E59,0) -> 27.67281639 | I59: =SUM(D59:D60)/2 -> 27.08279491 | J59: =SUM(E59:E60)/2 -> 25.8840033 | K59: =IF(Information!$H$20="x",I59,0) -> 27.08279491 | L59: =IF(Information!$H$20="x",J59,0) -> 25.8840033 | N59: =N58 -> 1.13412296 | O59: 71.33009841 | P59: 93.46949842 | Q59: =P59/2 -> 46.73474921 | R59: =-Q59 -> -46.73474921 | S59: =(Q59-T59)*2 -> -0.007778872135 | T59: =(($E$93-$E$92)*(O59-$F$92)/($F$93-$F$92)+$E$92)/2 -> 46.73863865 | U59: =-T59 -> -46.73863865 | V59: =IF(C60>0,L59,"") -> 25.8840033 | Y59: Panel E (bottom) | Z59: ='Panel Calculations'!D57 -> 19.240789 | AA59: ='Panel Calculations'!E57 -> 29.76383075 | AB59: ='Panel Calculations'!D58 -> 29.37342936 | AC59: ='Panel Calculations'!E58 -> 27.13836358 | AD59: =(AC59-AA59)/(AB59-Z59) -> -0.2591098742 | AE59: =(AC59*Z59-AA59*AB59)/(Z59-AB59) -> 34.74930917
C60: =C57+1 -> 18 | D60: ='Panel Calculations'!$D$80 -> 26.85480979 | E60: ='Panel Calculations'!$E$80 -> 24.09519021 | G60: =IF(Information!$H$21="x",D60,0) -> 26.85480979 | H60: =IF(Information!$H$21="x",E60,0) -> 24.09519021 | K60: =K59 -> 27.08279491 | L60: =L59 -> 25.8840033 | N60: =N59 -> 1.13412296 | O60: 71.33009841 | P60: 93.46949842 | Q60: 46.73474921 | R60: -46.73474921 | S60: -0.007778872135 | T60: =(($E$93-$E$92)*(O60-$F$92)/($F$93-$F$92)+$E$92)/2 -> 46.73863865 | U60: -46.73863865 | V60: =IF(C60>0,L60,"") -> 25.8840033 | Y60: Sample Point | Z60: ='Panel Calculations'!D80 -> 26.85480979 | AA60: ='Panel Calculations'!E80 -> 24.09519021 | AB60: =Z60+10*'Panel Calculations'!Q23 -> 28.11908787 | AC60: =AA60+10*'Panel Calculations'!P23 -> 34.01494831 | AD60: =(AC60-AA60)/(AB60-Z60) -> 7.84618374 | AE60: =(AC60*Z60-AA60*AB60)/(Z60-AB60) -> -186.6125818 | AF60: =(AE59-AE60)/(AD60-AD59) -> 27.31078002 | AG60: =AF60*AD60+AE60 -> 27.67281639
K61: =K60 -> 27.08279491 | L61: =L60 -> 25.8840033 | N61: =((I59-I56)^2+(J59-J56)^2)^0.5 -> 1.884754041 | O61: =O58+N61 -> 73.21485245 | P61: =(((D59-D60)^2+(E59-E60)^2)^0.5)*Information!$D$21 -> 82.48216334 | Q61: 41.24108167 | R61: -41.24108167 | S61: 4.462996607e-05 | T61: =(($E$93-$E$92)*(O61-$F$92)/($F$93-$F$92)+$E$92)/2 -> 41.24105936 | U61: -41.24105936 | V61: =IF(C60>0,L61,"") -> 25.8840033
D62: =(D59+AF63)/2 -> 28.58039001 | E62: =(E59+AG63)/2 -> 27.34384791 | G62: =IF(Information!$H$21="x",D62,0) -> 28.58039001 | H62: =IF(Information!$H$21="x",E62,0) -> 27.34384791 | I62: =SUM(D62:D63)/2 -> 27.7175999 | J62: =SUM(E62:E63)/2 -> 25.71951906 | K62: =IF(Information!$H$20="x",I62,0) -> 27.7175999 | L62: =IF(Information!$H$20="x",J62,0) -> 25.71951906 | N62: =N61 -> 1.884754041 | O62: 73.21485245 | P62: 82.48216334 | Q62: 41.24108167 | R62: -41.24108167 | S62: 4.462996607e-05 | T62: =(($E$93-$E$92)*(O62-$F$92)/($F$93-$F$92)+$E$92)/2 -> 41.24105936 | U62: -41.24105936 | V62: =IF(C63>0,L62,"") -> 25.71951906 | Y62: Panel E (bottom) | Z62: ='Panel Calculations'!D57 -> 19.240789 | AA62: ='Panel Calculations'!E57 -> 29.76383075 | AB62: ='Panel Calculations'!D58 -> 29.37342936 | AC62: ='Panel Calculations'!E58 -> 27.13836358 | AD62: =(AC62-AA62)/(AB62-Z62) -> -0.2591098742 | AE62: =(AC62*Z62-AA62*AB62)/(Z62-AB62) -> 34.74930917
C63: =C60+1 -> 19 | D63: =D60 -> 26.85480979 | E63: =E60 -> 24.09519021 | G63: =IF(Information!$H$21="x",D63,0) -> 26.85480979 | H63: =IF(Information!$H$21="x",E63,0) -> 24.09519021 | K63: =K62 -> 27.7175999 | L63: =L62 -> 25.71951906 | N63: =N62 -> 1.884754041 | O63: 73.21485245 | P63: 82.48216334 | Q63: 41.24108167 | R63: -41.24108167 | S63: 4.462996607e-05 | T63: =(($E$93-$E$92)*(O63-$F$92)/($F$93-$F$92)+$E$92)/2 -> 41.24105936 | U63: -41.24105936 | V63: =IF(C63>0,L63,"") -> 25.71951906 | Y63: Sample Point | Z63: ='Panel Calculations'!D50 -> 29.85 | AA63: ='Panel Calculations'!E50 -> 1.9 | AB63: ='Panel Calculations'!D51 -> 29.85 | AC63: ='Panel Calculations'!E51 -> 51.44 | AD63: =IF(Z63<>AB63,(AC63-AA63)/(AB63-Z63),"") ->  | AE63: =IF(Z63<>AB63,(AC63*Z63-AA63*AB63)/(Z63-AB63),"") ->  | AF63: =IF(AD63<>"",(AE62-AE63)/(AD63-AD62),Z63) -> 29.85 | AG63: =AF63*AD62+AE62 -> 27.01487942
K64: =K63 -> 27.7175999 | L64: =L63 -> 25.71951906 | N64: =((I62-I59)^2+(J62-J59)^2)^0.5 -> 0.6557685925 | O64: =O61+N64 -> 73.87062104 | P64: =(((D62-D63)^2+(E62-E63)^2)^0.5)*Information!$D$21 -> 84.12742461 | Q64: 42.0637123 | R64: -42.0637123 | S64: 5.470887116 | T64: =(($E$93-$E$92)*(O64-$F$92)/($F$93-$F$92)+$E$92)/2 -> 39.32826875 | U64: -39.32826875 | V64: =IF(C63>0,L64,"") -> 25.71951906
D65: =('Panel Calculations'!D50+AF63)/2 -> 29.85 | E65: =(E66+AG63)/2 -> 25.55503481 | G65: =IF(Information!$H$21="x",D65,0) -> 29.85 | H65: =IF(Information!$H$21="x",E65,0) -> 25.55503481 | I65: =SUM(D65:D66)/2 -> 28.3524049 | J65: =SUM(E65:E66)/2 -> 24.82511251 | K65: =IF(Information!$H$20="x",I65,0) -> 28.3524049 | L65: =IF(Information!$H$20="x",J65,0) -> 24.82511251 | N65: =N64 -> 0.6557685925 | O65: 73.87062104 | P65: 84.12742461 | Q65: 42.0637123 | R65: -42.0637123 | S65: 5.470887116 | T65: =(($E$93-$E$92)*(O65-$F$92)/($F$93-$F$92)+$E$92)/2 -> 39.32826875 | U65: -39.32826875 | V65: =IF(C66>0,L65,"") -> 24.82511251
C66: =C63+1 -> 20 | D66: =D63 -> 26.85480979 | E66: =E63 -> 24.09519021 | G66: =IF(Information!$H$21="x",D66,0) -> 26.85480979 | H66: =IF(Information!$H$21="x",E66,0) -> 24.09519021 | K66: =K65 -> 28.3524049 | L66: =L65 -> 24.82511251 | N66: =N65 -> 0.6557685925 | O66: 73.87062104 | P66: 84.12742461 | Q66: 42.0637123 | R66: -42.0637123 | S66: 5.470887116 | T66: =(($E$93-$E$92)*(O66-$F$92)/($F$93-$F$92)+$E$92)/2 -> 39.32826875 | U66: -39.32826875 | V66: =IF(C66>0,L66,"") -> 24.82511251
K67: =K66 -> 28.3524049 | L67: =L66 -> 24.82511251 | N67: =((I65-I62)^2+(J65-J62)^2)^0.5 -> 1.09678642 | O67: =O64+N67 -> 74.96740746 | P67: =(((D65-D66)^2+(E65-E66)^2)^0.5)*Information!$D$21 -> 76.20313736 | Q67: 38.10156868 | R67: -38.10156868 | S67: 3.944962922 | T67: =(($E$93-$E$92)*(O67-$F$92)/($F$93-$F$92)+$E$92)/2 -> 36.12908722 | U67: -36.12908722 | V67: =IF(C66>0,L67,"") -> 24.82511251
D68: =D65 -> 29.85 | E68: =E66 -> 24.09519021 | G68: =IF(Information!$H$21="x",D68,0) -> 29.85 | H68: =IF(Information!$H$21="x",E68,0) -> 24.09519021 | I68: =SUM(D68:D69)/2 -> 28.3524049 | J68: =SUM(E68:E69)/2 -> 24.09519021 | K68: =IF(Information!$H$20="x",I68,0) -> 28.3524049 | L68: =IF(Information!$H$20="x",J68,0) -> 24.09519021 | N68: =N67 -> 1.09678642 | O68: 74.96740746 | P68: 76.20313736 | Q68: 38.10156868 | R68: -38.10156868 | S68: 3.944962922 | T68: =(($E$93-$E$92)*(O68-$F$92)/($F$93-$F$92)+$E$92)/2 -> 36.12908722 | U68: -36.12908722 | V68: =IF(C69>0,L68,"") -> 24.09519021
B69: S3 | C69: =C66+1 -> 21 | D69: =D66 -> 26.85480979 | E69: =E66 -> 24.09519021 | G69: =IF(Information!$H$21="x",D69,0) -> 26.85480979 | H69: =IF(Information!$H$21="x",E69,0) -> 24.09519021 | K69: =K68 -> 28.3524049 | L69: =L68 -> 24.09519021 | N69: =N68 -> 1.09678642 | O69: 74.96740746 | P69: 76.20313736 | Q69: 38.10156868 | R69: -38.10156868 | S69: 3.944962922 | T69: =(($E$93-$E$92)*(O69-$F$92)/($F$93-$F$92)+$E$92)/2 -> 36.12908722 | U69: -36.12908722 | V69: =IF(C69>0,L69,"") -> 24.09519021
K70: =K69 -> 28.3524049 | L70: =L69 -> 24.09519021 | N70: =((I68-I65)^2+(J68-J65)^2)^0.5 -> 0.7299223042 | O70: =O67+N70 -> 75.69732976 | P70: =(((D68-D69)^2+(E68-E69)^2)^0.5)*Information!$D$21-M70 -> 68.5 | Q70: 34.25 | R70: -34.25 | S70: 0.5 | T70: =(($E$93-$E$92)*(O70-$F$92)/($F$93-$F$92)+$E$92)/2 -> 34 | U70: -34 | V70: =IF(C69>0,L70,"") -> 24.09519021
D71: =D68 -> 29.85 | E71: ='Panel Calculations'!E61 -> 4.895190206 | G71: =IF(Information!$H$21="x",D71,0) -> 29.85 | H71: =IF(Information!$H$21="x",E71,0) -> 4.895190206 | I71: =SUM(D71:D72)/2 -> 28.3524049 | J71: =SUM(E71:E72)/2 -> 4.895190206 | K71: =IF(Information!$H$20="x",I71,0) -> 28.3524049 | L71: =IF(Information!$H$20="x",J71,0) -> 4.895190206 | N71: =N70 -> 0.7299223042 | O71: 75.69732976 | P71: 68.5 | Q71: 34.25 | R71: -34.25 | S71: 0 | T71: =$P$70/2 -> 34.25 | U71: =-T71 -> -34.25 | V71: =IF(C72>0,L71,"") -> 4.895190206
C72: =C69+1 -> 22 | D72: =D69 -> 26.85480979 | E72: =E71 -> 4.895190206 | G72: =IF(Information!$H$21="x",D72,0) -> 26.85480979 | H72: =IF(Information!$H$21="x",E72,0) -> 4.895190206 | K72: =K71 -> 28.3524049 | L72: =L71 -> 4.895190206 | N72: =N71 -> 0.7299223042 | O72: 75.69732976 | P72: 68.5 | Q72: 34.25 | R72: -34.25 | S72: 0 | T72: =$P$70/2 -> 34.25 | U72: -34.25 | V72: =IF(C72>0,L72,"") -> 4.895190206
K73: =K72 -> 28.3524049 | L73: =L72 -> 4.895190206 | N73: =((I71-I68)^2+(J71-J68)^2)^0.5 -> 19.2 | O73: =O70+N73 -> 94.89732976 | P73: =(((D71-D72)^2+(E71-E72)^2)^0.5)*Information!$D$21-M73 -> 68.5 | Q73: 34.25 | R73: -34.25 | S73: 0 | T73: 34.25 | U73: -34.25 | V73: =IF(C72>0,L73,"") -> 4.895190206
D74: =D65 -> 29.85 | E74: =(E72+E77)/2 -> 3.397595103 | G74: =IF(Information!$H$21="x",D74,0) -> 29.85 | H74: =IF(Information!$H$21="x",E74,0) -> 3.397595103 | I74: =SUM(D74:D75)/2 -> 28.3524049 | J74: =SUM(E74:E75)/2 -> 4.146392654 | K74: =IF(Information!$H$20="x",I74,0) -> 28.3524049 | L74: =IF(Information!$H$20="x",J74,0) -> 4.146392654 | N74: =N73 -> 19.2 | O74: 94.89732976 | P74: 68.5 | Q74: 34.25 | R74: -34.25 | S74: 0 | T74: 34.25 | U74: -34.25 | V74: =IF(C75>0,L74,"") -> 4.146392654
C75: =C72+1 -> 23 | D75: =D66 -> 26.85480979 | E75: =E72 -> 4.895190206 | G75: =IF(Information!$H$21="x",D75,0) -> 26.85480979 | H75: =IF(Information!$H$21="x",E75,0) -> 4.895190206 | K75: =K74 -> 28.3524049 | L75: =L74 -> 4.146392654 | N75: =N74 -> 19.2 | O75: 94.89732976 | P75: 68.5 | Q75: 34.25 | R75: -34.25 | S75: 0 | T75: 34.25 | U75: -34.25 | V75: =IF(C75>0,L75,"") -> 4.146392654
K76: =K75 -> 28.3524049 | L76: =L75 -> 4.146392654 | M76: ='Panel Calculations'!L137*'Panel Calculations'!L138 -> 0 | N76: =((I74-I71)^2+(J74-J71)^2)^0.5 -> 0.7487975514 | O76: =O73+N76 -> 95.64612732 | P76: =(((D74-D75)^2+(E74-E75)^2)^0.5)*Information!$D$21-M76 -> 76.58532823 | Q76: 38.29266411 | R76: -38.29266411 | S76: 8.085328229 | T76: 34.25 | U76: -34.25 | V76: =IF(C75>0,L76,"") -> 4.146392654
D77: =(D78+'Panel Calculations'!D50)/2 -> 28.3524049 | E77: ='Panel Calculations'!E50 -> 1.9 | G77: =IF(Information!$H$21="x",D77,0) -> 28.3524049 | H77: =IF(Information!$H$21="x",E77,0) -> 1.9 | I77: =SUM(D77:D78)/2 -> 27.60360735 | J77: =SUM(E77:E78)/2 -> 3.397595103 | K77: =IF(Information!$H$20="x",I77,0) -> 27.60360735 | L77: =IF(Information!$H$20="x",J77,0) -> 3.397595103 | N77: =N76 -> 0.7487975514 | O77: 95.64612732 | P77: 76.58532823 | Q77: 38.29266411 | R77: -38.29266411 | S77: 8.085328229 | T77: 34.25 | U77: -34.25 | V77: =IF(C78>0,L77,"") -> 3.397595103
C78: =C75+1 -> 24 | D78: =D75 -> 26.85480979 | E78: =E75 -> 4.895190206 | G78: =IF(Information!$H$21="x",D78,0) -> 26.85480979 | H78: =IF(Information!$H$21="x",E78,0) -> 4.895190206 | K78: =K77 -> 27.60360735 | L78: =L77 -> 3.397595103 | N78: =N77 -> 0.7487975514 | O78: 95.64612732 | P78: 76.58532823 | Q78: 38.29266411 | R78: -38.29266411 | S78: 8.085328229 | T78: 34.25 | U78: -34.25 | V78: =IF(C78>0,L78,"") -> 3.397595103
K79: =K78 -> 27.60360735 | L79: =L78 -> 3.397595103 | M79: =M76 -> 0 | N79: =((I77-I74)^2+(J77-J74)^2)^0.5 -> 1.058959653 | O79: =O76+N79 -> 96.70508697 | P79: =(((D77-D78)^2+(E77-E78)^2)^0.5)*Information!$D$21-M79 -> 76.58532823 | Q79: 38.29266411 | R79: -38.29266411 | S79: 8.085328229 | T79: 34.25 | U79: -34.25 | V79: =IF(C78>0,L79,"") -> 3.397595103
D80: =D81 -> 26.85480979 | E80: ='Panel Calculations'!E53 -> 1.9 | G80: =IF(Information!$H$21="x",D80,0) -> 26.85480979 | H80: =IF(Information!$H$21="x",E80,0) -> 1.9 | I80: =SUM(D80:D81)/2 -> 26.85480979 | J80: =SUM(E80:E81)/2 -> 3.397595103 | K80: =IF(Information!$H$20="x",I80,0) -> 26.85480979 | L80: =IF(Information!$H$20="x",J80,0) -> 3.397595103 | N80: =N79 -> 1.058959653 | O80: 96.70508697 | P80: 76.58532823 | Q80: 38.29266411 | R80: -38.29266411 | S80: 8.085328229 | T80: 34.25 | U80: -34.25 | V80: =IF(C81>0,L80,"") -> 3.397595103
C81: =C78+1 -> 25 | D81: =D78 -> 26.85480979 | E81: =E78 -> 4.895190206 | G81: =IF(Information!$H$21="x",D81,0) -> 26.85480979 | H81: =IF(Information!$H$21="x",E81,0) -> 4.895190206 | K81: =K80 -> 26.85480979 | L81: =L80 -> 3.397595103 | N81: =N80 -> 1.058959653 | O81: 96.70508697 | P81: 76.58532823 | Q81: 38.29266411 | R81: -38.29266411 | S81: 8.085328229 | T81: 34.25 | U81: -34.25 | V81: =IF(C81>0,L81,"") -> 3.397595103
K82: =K81 -> 26.85480979 | L82: =L81 -> 3.397595103 | M82: =M79 -> 0 | N82: =((I80-I77)^2+(J80-J77)^2)^0.5 -> 0.7487975514 | O82: =O79+N82 -> 97.45388452 | P82: =(((D80-D81)^2+(E80-E81)^2)^0.5)*Information!$D$21-M82 -> 68.5 | Q82: 34.25 | R82: -34.25 | S82: -2.842170943e-14 | T82: 34.25 | U82: -34.25 | V82: =IF(C81>0,L82,"") -> 3.397595103
D83: =D84 -> 0 | E83: =E81 -> 4.895190206 | G83: =IF(Information!$H$21="x",D83,0) -> 0 | H83: =IF(Information!$H$21="x",E83,0) -> 4.895190206 | I83: =SUM(D83:D84)/2 -> 0 | J83: =SUM(E83:E84)/2 -> 3.397595103 | K83: =IF(Information!$H$20="x",I83,0) -> 0 | L83: =IF(Information!$H$20="x",J83,0) -> 3.397595103 | N83: =N82 -> 0.7487975514 | O83: 97.45388452 | P83: 68.5 | Q83: 34.25 | R83: -34.25 | S83: -2.842170943e-14 | T83: 34.25 | U83: -34.25 | V83: =IF(C84>0,L83,"") -> 3.397595103
B84: S4 | C84: =C81+1 -> 26 | D84: ='Panel Calculations'!D47 -> 0 | E84: ='Panel Calculations'!E47 -> 1.9 | G84: =IF(Information!$H$21="x",D84,0) -> 0 | H84: =IF(Information!$H$21="x",E84,0) -> 1.9 | K84: =K83 -> 0 | L84: =L83 -> 3.397595103 | N84: =N83 -> 0.7487975514 | O84: 97.45388452 | P84: 68.5 | Q84: 34.25 | R84: -34.25 | S84: -2.842170943e-14 | T84: 34.25 | U84: -34.25 | V84: =IF(C84>0,L84,"") -> 3.397595103
K85: =K84 -> 0 | L85: =L84 -> 3.397595103 | M85: =M82 -> 0 | N85: =((I83-I80)^2+(J83-J80)^2)^0.5 -> 26.85480979 | O85: =O82+N85 -> 124.3086943 | P85: =(((D83-D84)^2+(E83-E84)^2)^0.5)*Information!$D$21-M85 -> 68.5 | Q85: 34.25 | R85: -34.25 | S85: -2.842170943e-14 | T85: 34.25 | U85: -34.25 | V85: =IF(C84>0,L85,"") -> 3.397595103
B89: S2 (Calc) | O89: =O25-Information!D19 -> 35.01105668 | P89: =(($P$70-$P$7)*O89/$O$70+$P$7) -> 305.5810882
D92: a1 | E92: =P10 -> 501.3147576 | F92: =O10 -> 1.419934453
D93: a2 | E93: =Information!D26 -> 68 | F93: =O70 -> 75.69732976
D94: a3 | E94: =P70 -> 68.5 | F94: =O70 -> 75.69732976

Sheet Guides
A1: Guides | C1: x | D1: y | F1: x | G1: y | J1: x1 | K1: y1 | L1: x2 | M1: y2 | N1: a | O1: b | P1: x | Q1: y | R1: l
C3: ='Panel Calculations'!D61 -> 0 | D3: ='Panel Calculations'!E61 -> 4.895190206 | F3: =IF(Information!$H$22="x",C3,0) -> 0 | G3: =IF(Information!$H$22="x",D3,0) -> 4.895190206
B4: 1 | C4: ='Panel Calculations'!D49 -> 31.75 | D4: =D3 -> 4.895190206 | F4: =IF(Information!$H$22="x",C4,0) -> 31.75 | G4: =IF(Information!$H$22="x",D4,0) -> 4.895190206
C6: ='Panel Calculations'!D33 -> 3.8 | D6: ='Panel Calculations'!E40 -> 53.34 | F6: =IF(Information!$H$22="x",C6,0) -> 3.8 | G6: =IF(Information!$H$22="x",D6,0) -> 53.34
B7: 2 | C7: =C6 -> 3.8 | D7: ='Panel Calculations'!E45 -> 0 | F7: =IF(Information!$H$22="x",C7,0) -> 3.8 | G7: =IF(Information!$H$22="x",D7,0) -> 0
C9: =P10 -> 31.75 | D9: =Q10 -> 26.52257066 | F9: =IF(Information!$H$22="x",C9,0) -> 31.75 | G9: =IF(Information!$H$22="x",D9,0) -> 26.52257066 | I9: ='Panel Calculations'!B55 -> Panel E | J9: ='Panel Calculations'!D57 -> 19.240789 | K9: ='Panel Calculations'!E57 -> 29.76383075 | L9: ='Panel Calculations'!D58 -> 29.37342936 | M9: ='Panel Calculations'!E58 -> 27.13836358 | N9: =(M9-K9)/(L9-J9) -> -0.2591098742 | O9: =(M9*J9-K9*L9)/(J9-L9) -> 34.74930917
B10: 3 | C10: =P11 -> 0 | D10: =Q11 -> 34.74930917 | F10: =IF(Information!$H$22="x",C10,0) -> 0 | G10: =IF(Information!$H$22="x",D10,0) -> 34.74930917 | I10: ='Panel Calculations'!B67 -> Panel G | J10: ='Panel Calculations'!D68 -> 31.75 | K10: ='Panel Calculations'!E68 -> 0 | L10: ='Panel Calculations'!D69 -> 31.75 | M10: ='Panel Calculations'!E69 -> 53.34 | N10: =IF(J10<>L10,(M10-K10)/(L10-J10),"") ->  | O10: =IF(J10<>L10,(M10*J10-K10*L10)/(J10-L10),"") ->  | P10: =IF(N10<>"",(O9-O10)/(N10-N9),J10) -> 31.75 | Q10: =P10*N9+O9 -> 26.52257066 | R10: =(P10^2+Q10^2)^0.5 -> 41.37039104
I11: ='Panel Calculations'!B67 -> Panel G | J11: ='Panel Calculations'!D67 -> 0 | K11: ='Panel Calculations'!E67 -> 0 | L11: ='Panel Calculations'!D70 -> 0 | M11: ='Panel Calculations'!E70 -> 53.34 | N11: =IF(J11<>L11,(M11-K11)/(L11-J11),"") ->  | O11: =IF(J11<>L11,(M11*J11-K11*L11)/(J11-L11),"") ->  | P11: =IF(N11<>"",(O9-O11)/(N11-N9),J11) -> 0 | Q11: =P11*N9+O9 -> 34.74930917 | R11: =(P11^2+Q11^2)^0.5 -> 34.74930917
F12: =IF(Information!$H$22="x",C12,0) -> 0 | G12: =IF(Information!$H$22="x",D12,0) -> 0
B13: 4 | F13: =IF(Information!$H$22="x",C13,0) -> 0 | G13: =IF(Information!$H$22="x",D13,0) -> 0
F15: =IF(Information!$H$22="x",C15,0) -> 0 | G15: =IF(Information!$H$22="x",D15,0) -> 0
B16: 5 | F16: =IF(Information!$H$22="x",C16,0) -> 0 | G16: =IF(Information!$H$22="x",D16,0) -> 0
F18: =IF(Information!$H$22="x",C18,0) -> 0 | G18: =IF(Information!$H$22="x",D18,0) -> 0
B19: 6 | F19: =IF(Information!$H$22="x",C19,0) -> 0 | G19: =IF(Information!$H$22="x",D19,0) -> 0
C24: 0 | D24: =0 -> 0 | F24: =IF(Information!$H$22="x",C24,0) -> 0 | G24: =IF(Information!$H$22="x",D24,0) -> 0
B25: X | C25: 0 | D25: =MAX(C3:D20) -> 53.34 | F25: =IF(Information!$H$22="x",C25,0) -> 0 | G25: =IF(Information!$H$22="x",D25,0) -> 53.34
C27: 0 | D27: =0 -> 0 | F27: =IF(Information!$H$22="x",C27,0) -> 0 | G27: =IF(Information!$H$22="x",D27,0) -> 0
B28: Y | C28: =D25 -> 53.34 | D28: =D27 -> 0 | F28: =IF(Information!$H$22="x",C28,0) -> 53.34 | G28: =IF(Information!$H$22="x",D28,0) -> 0
